Cogmind - Beta 15 @@@ ROGUE MODE // 2025.05.20 @ 21:36:37 Player: MolePlayingNice Result: Destroyed by Striker with Plasma Lance Performance ------------- Evolutions (8) 4000 Regions Visited (27) 5400 Robots Destroyed (503) 2515 Value Destroyed (29412) 29412 Prototype IDs (180) 3600 Alien Tech Used (6) 1200 Bonus (23945) 23945 TOTAL SCORE: 70072 Bonus ------- High Alert Combat Kills 11027 Follower Combat Kills 3296 Network Hubs Disabled 200 Registered with UFD 300 Met Optimus in HQ 500 Met Zhirov 300 MAIN.C Attacked Warlord 500 Built Enhanced Grunts 300 A7 Reached Mainframe 300 Met R17 at Cetus 500 Found Hidden Lab 3000 Used Core Reset Matrix 3000 Met R17 at Research 2000 Scanned by Researcher 500 Pursued by Intercept 1500 Met Optimus at Protoforge 1000 Friendly Fire -4278 Cogmind --------- Core Integrity 0/1450 Matter 222/300 Energy 491/1200 System Corruption 0% Temperature Cool (18) Movement Walking (107) Location -2/Protoforge Parts ------- > --- POWER (2) -------- Improved Quantum Reactor > --- PROPULSION (5) --- Myomer Leg Myomer Leg Biometal Leg Experimental VSS Leg > --- UTILITY (12) ----- Experimental Heat Sink High-capacity Storage Unit Energy Well Advanced Energy Well Advanced Signal Interpreter Experimental Targeting Computer Experimental Core Analyzer Experimental EM Shield Concept Network Penetrator Experimental System Purifier > --- WEAPON (5) ------- Concept Variable Chargecaster Concept Plasma Driver Helical Railgun > --- INVENTORY (20) --- Matter Drive Biometal Leg High-density Centrium Leg Advanced Cryofiber Web Experimental Heat Sink Matter Compressor (250) Long-range Sensor Array Experimental Armor Integrity Analyzer Centrium Medium Armor Plating Medium Regenerative Plating Thermal Barrier Crosscalibrator Subatomic Replicator Terrabomb Vortex Rifle (10) Faulty Concept Variable Chargecaster Warp Cannon Botcube Peak State ------------ > --- POWER ------------ Particle Reactor Concept Zero-point Core > --- PROPULSION ------- Myomer Leg Myomer Leg Myomer Leg Myomer Leg High-density Centrium Leg > --- UTILITY ---------- High-capacity Storage Unit Long-range Sensor Array Advanced Signal Interpreter Experimental Targeting Computer Experimental Core Analyzer Expert System Experimental Phase Shifter Centrium Medium Armor Plating Medium Regenerative Plating Concept Network Penetrator A0-MCA's Component Scanner Experimental System Purifier > --- WEAPON ----------- Concept Variable Chargecaster Concept Variable Chargecaster Concept Variable Chargecaster Concept Variable Chargecaster Concept Plasma Driver > --- INVENTORY -------- Matter Drive Myomer Leg Advanced Cryofiber Web Experimental Heat Sink Experimental Heat Sink Advanced Energy Well Matter Compressor Thermal Barrier Experimental EM Shield Crosscalibrator Transdimensional Reconstructor Subatomic Replicator Terrabomb Vortex Rifle Concept Variable Chargecaster Compact HERF Cannon Vortex Driver Warp Cannon Fusion Bomb Launcher Botcube [Rating: 237] Favorites ----------- Power Quantum Reactor Engine Ion Engine Power Core Neutrino Core Reactor Quantum Reactor Propulsion Aluminum Leg Leg Aluminum Leg Wheel Armored Wheel Flight Unit VTOL Module Utility Advanced Heat Sink Device Advanced Heat Sink Storage Large Storage Unit Processor Experimental Targeting Computer Hackware Quantum Router Protection Medium Regenerative Plating Weapon Wave Gun Energy Gun Wave Gun Energy Cannon Enhanced Nova Cannon Ballistic Gun Railgun Ballistic Cannon Antimatter Cannon Launcher Fusion Bomb Launcher Special Weapon RU-N14's Throwing Claymores v3 Impact Weapon Heavy Flail Slashing Weapon Mining Claw Build | -11 -10 -10 -9 -9 -9 -9 -6 -6 -6 -6 -6 -5 -5 -5 -5 -4 -4 -4 -4 -4 -3 -3 -3 -3 -2 -2 -2 ------- Run | Yrd Mat Min Mat Sto Rec Scr Fac Ext Cet Arc Hub Fac Upp Upp War Pro Fac Upp Upp Zhi Pro Res Arm Lab Res Qua Frg Slots Evolved 16 | . . . 2 . . . 6 . . . . 2 . . . . 2 . . . . 2 . . 2 . . Power 1 | . . . . . . . . . . . . 1 . . . . . . . . . . . . . . . Propulsion 3 | . . . 1 . . . 1 . . . . . . . . . 1 . . . . . . . . . . Utility 10 | . . . 1 . . . 3 . . . . 1 . . . . 1 . . . . 2 . . 2 . . Weapon 2 | . . . . . . . 2 . . . . . . . . . . . . . . . . . . . . Parts Attached 395 | . 12 11 22 18 2 24 38 25 7 13 16 19 6 3 11 4 7 1 1 2 1 18 9 2 36 28 59 Power 39 | . 1 2 3 2 1 3 4 . . 1 1 1 1 . 2 . 1 . . 1 . 1 . . 3 6 5 Engine 13 | . 1 2 2 1 1 2 4 . . . . . . . . . . . . . . . . . . . . Core 6 | . . . 1 1 . 1 . . . . . 1 1 . . . . . . . . . . . . . 1 Reactor 20 | . . . . . . . . . . 1 1 . . . 2 . 1 . . 1 . 1 . . 3 6 4 Propulsion 93 | . 5 4 5 5 . 9 9 . . 1 6 5 1 . 3 . 3 . . . . 6 6 . 6 4 15 Treads . | . . . . . . . . . . . . . . . . . . . . . . . . . . . . Leg 87 | . 5 4 5 5 . 4 9 . . 1 6 5 1 . 3 . 3 . . . . 6 6 . 5 4 15 Wheel 3 | . . . . . . 2 . . . . . . . . . . . . . . . . . . 1 . . Hover . | . . . . . . . . . . . . . . . . . . . . . . . . . . . . Flight 3 | . . . . . . 3 . . . . . . . . . . . . . . . . . . . . . Utility 138 | . 2 1 5 5 . 7 11 12 3 5 8 10 2 . 3 3 2 . . . 1 6 1 2 17 10 22 Device 75 | . . 1 1 3 . 3 4 9 1 3 4 4 1 . 1 2 2 . . . 1 3 1 1 10 8 12 Storage 10 | . 1 . 1 . . 1 1 . . . 1 1 1 . . . . . . . . . . . 2 . 1 Processor 16 | . 1 . . . . 1 1 1 . . 1 2 . . 2 . . . . . . 2 . . 1 1 3 Hackware 8 | . . . . . . . . . . 1 1 1 . . . . . . . . . . . . 3 . 2 Protection 29 | . . . 3 2 . 2 5 2 2 1 1 2 . . . 1 . . . . . 1 . 1 1 1 4 Artifact . | . . . . . . . . . . . . . . . . . . . . . . . . . . . . Weapon 125 | . 4 4 9 6 1 5 14 13 4 6 1 3 2 3 3 1 1 1 1 1 . 5 2 . 10 8 17 Energy Gun 76 | . 3 2 3 4 1 2 10 13 3 4 . 3 1 2 1 . . . . 1 . 2 1 . 7 4 9 Energy Cannon 11 | . . . 1 . . . 2 . . . . . . . 1 . . . . . . . 1 . 2 2 2 Ballistic Gun 26 | . 1 . 5 . . 2 . . 1 2 . . 1 . . 1 1 1 1 . . 3 . . . 1 6 Ballistic Cannon 3 | . . . . 1 . . 1 . . . . . . 1 . . . . . . . . . . . . . Launcher 5 | . . 2 . . . . 1 . . . 1 . . . . . . . . . . . . . 1 . . Special Weapon 1 | . . . . . . . . . . . . . . . 1 . . . . . . . . . . . . Impact Weapon 2 | . . . . 1 . . . . . . . . . . . . . . . . . . . . . 1 . Slashing Weapon 1 | . . . . . . 1 . . . . . . . . . . . . . . . . . . . . . Piercing Weapon . | . . . . . . . . . . . . . . . . . . . . . . . . . . . . Special Melee Weapon . | . . . . . . . . . . . . . . . . . . . . . . . . . . . . Unidentified Prototypes 30 | . . . 1 2 . . 7 . 3 . 5 2 . . 7 . . . . 1 . . 1 1 . . . Corrupted Parts 9 | . . . . . . . . . . 2 1 . . . . . . . . . . . . . . . 6 System Corruption 48 | . . . . . . . . . . 9 1 . . . . . . . . . . . . . . . 38 Parts Lost 81 | . . 3 2 1 1 . 7 9 . . 4 5 1 . . 1 . . . . . . . . 5 7 35 Power 9 | . . . 1 1 1 . . 1 . . . 1 . . . . . . . . . . . . . 1 3 Propulsion 13 | . . 2 . . . . 1 . . . 1 2 . . . . . . . . . . . . 1 . 6 Utility 31 | . . . 1 . . . 3 5 . . 1 1 . . . . . . . . . . . . 3 5 12 Weapon 28 | . . 1 . . . . 3 3 . . 2 1 1 . . 1 . . . . . . . . 1 1 14 Highest Loss Streak 11 | . . 3 1 1 1 . 5 6 . . 4 4 1 . . 1 . . . . . . . . 3 3 11 To Critical Strikes 4 | . . . . . . . . . . . . . . . . . . . . . . . . . . 1 3 Average Backups 13 | . 7 9 14 14 14 11 11 10 11 12 12 12 13 13 13 13 12 13 12 13 13 12 13 13 15 17 18 Power . | . 1 1 1 . . . 1 . 1 1 1 . . . . 1 1 1 1 . 1 1 . . . . . Propulsion 1 | . 2 2 3 4 4 2 1 1 1 . . . . . . . . . . 1 1 1 1 1 1 . . Utility 5 | . . . 1 1 1 3 4 4 4 5 5 7 8 9 8 8 7 7 7 7 7 6 6 7 7 5 9 Weapon 5 | . 3 3 7 8 8 5 4 4 5 6 4 3 4 4 4 4 4 4 4 3 3 3 4 4 5 6 5 Tool/Special . | . . . . . . . . . . . . . . . . . . . . . . . . . . . . Unused Backups 92 | . 13 . 11 1 . 8 6 4 1 2 2 2 8 6 4 . . 1 . . . 3 . . 5 6 9 Power 13 | . 1 . 1 . . . . 2 1 . 1 1 1 1 . . . . . . . . . . 1 2 1 Propulsion 19 | . 7 . 3 . . 2 2 . . . . . 1 . . . . . . . . 2 . . . 1 1 Utility 33 | . 2 . 2 1 . 2 3 . . 1 1 1 5 4 1 . . 1 . . . 1 . . 4 1 3 Weapon 22 | . 3 . 5 . . 3 . 2 . 1 . . 1 1 3 . . . . . . . . . . 2 1 Tool/Special 5 | . . . . . . 1 1 . . . . . . . . . . . . . . . . . . . 3 Average Slot Usage (%) 93 | . 96 99 98 99 99 92 87 80 85 85 90 93 96 100 99 99 99 100 100 79 99 99 92 84 88 96 92 Engine 3 | . 14 14 7 9 10 3 5 5 6 6 2 . . . . . . . . . . . . . . . . Core 1 | . . . 3 2 . 6 . . . . . . 2 5 4 . . . . . . . . . . . . Reactor 3 | . . . . . . . . . . . 3 9 5 5 5 11 10 10 10 10 10 9 5 4 4 7 5 Leg 21 | . 28 27 32 33 33 25 20 13 13 13 18 21 23 23 22 23 25 26 26 26 26 23 19 13 12 18 19 Device 16 | . . 2 11 12 11 12 17 16 14 14 13 18 19 23 21 17 21 21 21 20 20 19 18 20 20 20 15 Storage 6 | . 14 14 11 11 11 8 6 6 6 6 6 5 5 5 5 5 5 5 5 5 5 4 4 4 4 4 4 Processor 8 | . 11 11 . . . . . 4 6 5 . 4 8 5 6 11 10 10 10 10 10 17 19 18 15 17 18 Protection 6 | . . . 10 9 11 8 7 5 11 11 12 7 5 5 4 4 4 5 5 5 5 4 4 1 4 4 5 Energy Gun 15 | . 20 18 7 19 20 17 24 25 25 25 23 19 18 14 21 21 13 7 5 . 4 3 10 7 12 15 7 Energy Cannon 1 | . . . . . . . 1 . . . . . . 1 . . . . . . . . . 5 5 3 4 Ballistic Gun 3 | . 7 . 14 . . 1 . . . . 2 1 3 5 . . 6 12 15 . 15 15 6 6 1 . 5 Peak Build Rating 237 | . 8 11 19 21 17 28 84 82 99 98 109 116 98 100 128 128 139 140 140 144 144 160 170 180 208 209 237 Average Rating 108 | . 7 8 15 16 15 19 68 76 93 92 96 104 93 97 108 125 137 139 139 114 143 154 159 171 195 201 207 On Entrance 97 | 6 6 8 11 14 16 15 28 80 82 98 96 106 96 96 97 128 126 139 140 140 144 144 159 165 176 193 208 Naked Turns 25 | . . . . . . 25 . . . . . . . . . . . . . . . . . . . . . Heaviest Build 163 | 11 27 33 39 39 38 41 74 73 68 69 78 92 85 88 91 94 105 106 106 105 105 110 99 116 153 163 159 Greatest Support 152 | 20 20 20 30 30 30 36 72 72 72 72 84 92 80 80 96 96 125 125 125 125 125 136 150 150 152 152 150 Greatest Overweight (x) 3 | . 1 1 1 1 1 3 1 1 . . 1 1 1 1 1 . . . . . . 1 . . 1 1 1 Average Overweight (x) . | . . 1 . 1 1 . . . . . . . . 1 . . . . . . . . . . . . . Largest Inventory Capacity 20 | . 15 15 15 15 15 15 15 15 15 15 15 15 15 15 15 15 15 15 15 15 15 15 15 15 20 20 20 Average Capacity 15 | . 9 15 15 15 15 13 15 15 15 15 15 15 15 15 15 15 15 15 15 15 15 15 15 15 17 20 20 Most Carried 20 | . 8 15 15 15 15 15 15 15 15 15 15 15 15 15 15 15 15 15 15 15 15 15 15 15 20 20 20 Average Carried 15 | . 7 9 14 14 14 12 14 14 14 14 14 14 14 14 14 15 14 14 14 14 15 14 14 14 17 19 19 Final Capacity 20 | 8 15 15 15 15 15 15 15 15 15 15 15 15 15 15 15 15 15 15 15 15 15 15 15 15 20 20 20 Final Carried 20 | 6 8 15 15 15 15 15 15 15 15 15 14 15 15 15 15 15 15 15 15 15 15 15 14 15 18 20 18 Class Distribution -------------------- 16% | Scavenger-Gunner 14% | Commander-Mutant 12% | Scavenger-Skirmisher 8% | Hacker-Gunner 8% | Scavenger-Tank 8% | Tank 6% | Scavenger-Mutant 5% | Mutant 4% | Commander-Tank 4% | Alien-Gunner 4% | Commander-Gunner 3% | Gunner Dominant Class ---------------- Scavenger-Mutant | -10/Materials Scavenger-Mutant | -10/Mines Scavenger-Mutant | -9/Materials Commander-Mutant | -9/Storage Commander-Mutant | -9/Recycling Commander-Mutant | -9/Scraptown Tank | -6/Factory Commander-Gunner | -6/Extension Commander-Tank | -6/Cetus Commander-Tank | -6/Archives Scavenger-Tank | -6/Hub_04(d) Scavenger-Skirmisher | -5/Factory Scavenger-Skirmisher | -5/Upper Caves Scavenger-Skirmisher | -5/Upper Caves Scavenger-Skirmisher | -5/Warlord Scavenger-Gunner | -4/Proximity Caves Scavenger-Gunner | -4/Factory Tank | -4/Upper Caves Tank | -4/Upper Caves Mutant | -4/Zhirov Tank | -3/Proximity Caves Scavenger-Tank | -3/Research Gunner | -3/Armory Gunner | -3/Lab Hacker-Gunner | -2/Research Scavenger-Gunner | -2/Quarantine Scavenger-Gunner | -2/Protoforge Resources | -11 -10 -10 -9 -9 -9 -9 -6 -6 -6 -6 -6 -5 -5 -5 -5 -4 -4 -4 -4 -4 -3 -3 -3 -3 -2 -2 -2 ----------- Run | Yrd Mat Min Mat Sto Rec Scr Fac Ext Cet Arc Hub Fac Upp Upp War Pro Fac Upp Upp Zhi Pro Res Arm Lab Res Qua Frg Matter Collected 12516 | 191 310 115 592 299 78 332 918 391 136 186 371 502 358 256 102 298 240 15 150 . 450 676 354 . 1377 752 3067 Remotely . | . . . . . . . . . . . . . . . . . . . . . . . . . . . . Salvage Created 27213 | . 595 239 914 615 223 32 2050 1522 203 469 532 898 283 188 . 455 258 . 341 . 288 900 541 . 6148 2661 6858 Parts 1143 | . 42 11 52 41 5 3 70 50 7 27 25 43 14 5 . 13 12 . 20 . 11 39 26 . 241 97 289 Haulers Intercepted 10 | . 1 . 2 2 . . 2 . . . . . . . . 1 . . . . . 1 . . 1 . . Recyclers Shooed 12 | . . . 1 . 3 . 1 1 . . . . . . . . 1 . . . . . . . 4 1 . Parts Field Recycled . | . . . . . . . . . . . . . . . . . . . . . . . . . . . . Retrieved Matter . | . . . . . . . . . . . . . . . . . . . . . . . . . . . . Parts Self-Destructed 81 | . . . . . . . . . . . . . 21 21 . 9 . . 20 . 10 . . . . . . Prevented . | . . . . . . . . . . . . . . . . . . . . . . . . . . . . Kills | -11 -10 -10 -9 -9 -9 -9 -6 -6 -6 -6 -6 -5 -5 -5 -5 -4 -4 -4 -4 -4 -3 -3 -3 -3 -2 -2 -2 ------- Run | Yrd Mat Min Mat Sto Rec Scr Fac Ext Cet Arc Hub Fac Upp Upp War Pro Fac Upp Upp Zhi Pro Res Arm Lab Res Qua Frg Combat Hostiles Destroyed 416 | . 17 4 19 12 4 . 37 22 2 3 10 13 1 5 . 14 2 . 6 . 8 5 10 1 68 35 118 Guns 245 | . 17 3 19 11 4 . 22 13 2 3 9 9 1 1 . 7 2 . 6 . 6 5 9 . 29 20 47 Cannons 68 | . . . . . . . 4 1 . . . . . . . . . . . . . . . 1 21 4 37 AOE 59 | . . . . . . . 9 3 . . 1 4 . 4 . 7 . . . . 2 . . . 3 10 16 Classes Destroyed 31 | . 4 2 4 2 . . 2 2 . . 2 . 2 . . . . . . . . . . . 1 1 9 Worker 10 | . . . 1 1 . . 2 . . . . 2 . . . . . . . . . 1 . . 2 1 . Builder 18 | . . . 1 . . . 4 3 . . 1 1 . . . . . . . . . 1 . . 2 2 3 Tunneler 1 | . . . . . . . . . . . . . . . . . . . . . . . . . 1 . . Hauler 11 | . 1 . 2 2 . . 2 . . . . . . . . 1 . . . . . 1 . . 1 . 1 Recycler 17 | . . 2 . . 1 . 2 1 . . . 2 . . . . 1 . . . . 3 . . 3 2 . Carrier 2 | . . . . . . . . . . . . . . . . . . . . . . . . . . . 2 Minesweeper 2 | . . . . . . . . . . . . . 1 . . . . . . . 1 . . . . . . Mechanic 1 | . . . . 1 . . . . . . . . . . . . . . . . . . . . . . . Operator 13 | . . . . 1 . . . 1 . 6 . 1 . . . . 1 . . . . . . . 1 1 1 Drone 27 | . . . . . . . . . . . . . . . . . . . . . . . . . . . 27 Watcher 13 | . 1 . 2 . . . . 2 . . . 1 . . . . . . . . . 1 . . 4 . 2 Swarmer 39 | . 6 . . 3 . . 7 . . . . 3 . . . 4 . . 1 . 4 . 4 . . 5 2 Saboteur 1 | . . . . . . . . . . . . . . . . . . . . . . . . . . . 1 Grunt 127 | . 11 2 12 4 1 1 22 8 . . 1 5 . 5 . 9 . . 1 . 4 . . . 15 9 17 Brawler 14 | . . . 1 . 1 . 1 . . . . . . . . . . . . . . . . . 2 1 8 Duelist 10 | . . . . . . . 1 . . . . . . . . . . . . . . . . . 3 1 5 Protector 7 | . . . . . . . . . . . 1 . . . . . . . . . . . . . . . 6 Researcher 1 | . . . . . . . . . . . . . . . . . . . . . . . . . . . 1 Sentry 44 | . . . 6 5 1 . 4 9 . 3 1 1 1 . . . . . 1 . . 1 . . 6 . 5 Demolisher 3 | . . 2 . . 1 . . . . . . . . . . . . . . . . . . . . . . Specialist 16 | . . . . . . . . . . . 1 . . . . . . . . . . . 3 . . 3 9 Hunter 29 | . . . . . . . . 2 . . 3 1 . . . . . . . . . 2 . . 12 4 5 Programmer 49 | . . . . . . . 2 1 . . . 3 . . . . 2 . 3 . . 2 3 . 20 8 5 Q-Series 1 | . . . . . . . . . . . . . . . . . . . . . . . . . . . 1 Behemoth 3 | . . . . . . . . 2 . . . . . . . 1 . . . . . . . . . . . Cetus Guard 2 | . . . . . . . . . 2 . . . . . . . . . . . . . . . . . . Lightning 3 | . . . . . . . . . . . 3 . . . . . . . . . . . . . . . . Hotshot 3 | . . . . . . . . . . . . . . . . . . . . . . . . . . . 3 Decapitator 4 | . . . . . . . . . . . . . . . . . . . . . . . . . . . 4 Immortal 1 | . . . . . . . . . . . . . . . . . . . . . . . . . . . 1 Tracker 8 | . . . . . . . . . . . . . . . . . . . . . . . . . 5 1 2 Combat Programmer 9 | . . . . . . . . . . . . . . . . . . . . . . . . . 5 2 2 Striker 8 | . . . . . . . . . . . . . . . . . . . . . . . . . . . 8 Executioner 5 | . . . . . . . . . . . . . . . . . . . . . . . . . . . 5 Alpha 7 2 | . . . . . . . . . . . . . . . . . . . . . . . . . . . 2 Fortress 1 | . . . . . . . . . . . . . . . . . . . . . . . . . . 1 . Scrapoid 1 | . . . . . . . . . . . . . 1 . . . . . . . . . . . . . . Savage 1 | . . . . . . . . . . . . . 1 . . . . . . . . . . . . . . Butcher 2 | . . . . . . . . 1 . 1 . . . . . . . . . . . . . . . . . Best Kill Streak 19 | . 4 3 3 4 3 . 19 8 2 3 4 9 1 5 . 6 2 . 3 . 4 7 5 1 8 8 18 Combat Bots Only 18 | . 4 2 3 4 3 . 16 6 2 3 3 5 1 5 . 5 2 . 3 . 4 2 5 1 6 6 18 Max Kills in Single Turn 4 | . 2 1 2 2 2 1 3 3 1 1 1 3 1 2 . 2 1 . 1 . 2 2 1 1 3 3 4 Gunslinging 1 | . 1 . . 1 1 . 1 . . . . . . . . 1 . . . . 1 . . . 1 . . Exploded 4 | . . . . . . . 2 3 . . 1 1 . 2 . 2 . . . . 1 . . . 2 2 4 Melee . | . . . . . . . . . . . . . . . . . . . . . . . . . . . . Uniques/NPCs Destroyed 2 | . . . . . . . . . 1 . . . . . . . . . . . . . . 1 . . . A7 (-6/Cetus) A5 (-3/Lab) Combat | -11 -10 -10 -9 -9 -9 -9 -6 -6 -6 -6 -6 -5 -5 -5 -5 -4 -4 -4 -4 -4 -3 -3 -3 -3 -2 -2 -2 -------- Run | Yrd Mat Min Mat Sto Rec Scr Fac Ext Cet Arc Hub Fac Upp Upp War Pro Fac Upp Upp Zhi Pro Res Arm Lab Res Qua Frg Hostile Shots Fired 2659 | . 71 26 84 53 21 . 231 275 8 6 125 95 8 9 1 59 22 . 33 . 56 74 109 13 422 270 588 Missed 867 | . 16 3 22 12 6 . 74 110 2 . 25 31 1 1 . 18 13 . 11 . 20 35 27 7 109 119 205 Deflected 60 | . . . . . . . . . . . . . . . . . . . . . . . . . 48 11 1 Hits 1792 | . 55 23 62 41 15 . 157 165 6 6 100 64 7 8 1 41 9 . 22 . 36 39 82 6 313 151 383 Melee 33 | . . . . . . . 4 . . . . . . . . . . . . . . . 1 . 4 . 24 Projectile 1759 | . 55 23 62 41 15 . 153 165 6 6 100 64 7 8 1 41 9 . 22 . 36 39 81 6 309 151 359 AOE 15 | . . 10 . . 1 . . . . . . . . . . . . . . . . . 2 . . . 2 Critical Strikes 103 | . 1 . 4 1 . . 9 2 2 1 4 4 . . . 2 1 . 2 . . . 1 1 18 9 41 Part Disruptions 6 | . . . . . . . . . . . 1 . . . . . . . . . . . 1 . 2 1 1 Damage Taken 30985 | . 552 631 854 635 220 . 2378 1979 239 142 2541 1262 222 197 74 941 112 . 218 . 477 366 873 158 4476 2693 8745 Core 2983 | . 109 137 129 93 14 . 139 241 35 20 293 78 19 . . 132 18 . 22 . 52 16 24 . 174 187 1051 Absorbed by Shields 5703 | . . . . . 9 . 397 121 26 . . 10 . . . . 59 . 231 . 319 366 753 . 1481 36 1895 Ignored by Resistances 898 | . . . . . . . . . . . . . . . . . . . . . . . 31 . 82 55 730 Regen/Repaired (Parts) 2940 | . . . . . . . . . . . . . . . 892 . . . . . . . . 24 1192 489 343 Core Remaining (%) 59 | 100 . 1 . . . 41 . . . . 14 . . . . 77 . . . . 92 . . 89 . . . Volleys Fired 1375 | . 70 20 65 30 16 . 94 49 49 29 40 49 14 8 7 50 7 . 14 . 18 29 42 56 267 82 270 Largest 5 | . 2 2 2 2 2 . 4 4 4 4 4 4 4 3 1 4 4 . 4 . 4 4 4 5 5 5 5 Hottest 855 | . 80 105 105 130 130 . 308 324 324 324 323 323 255 178 240 280 271 . 180 . 145 182 345 423 486 419 855 Shots Fired 3436 | . 140 39 130 60 34 . 247 174 93 70 144 114 40 19 7 92 20 1 57 . 43 103 110 83 640 238 738 Gun 2731 | . 140 39 130 60 34 . 210 165 93 70 141 111 40 15 7 76 20 1 57 . 40 103 97 20 372 192 498 Cannon 639 | . . . . . . . 29 6 . . . . . . . 6 . . . . . . 13 63 266 37 219 Launcher 66 | . . . . . . . 8 3 . . 3 3 . 4 . 10 . . . . 3 . . . 2 9 21 Special . | . . . . . . . . . . . . . . . . . . . . . . . . . . . . Kinetic 751 | . 94 . 102 . . . 15 . . . 26 22 10 4 . . 9 1 43 . 30 94 41 . 15 3 242 Thermal 2464 | . 46 39 28 60 34 . 224 171 93 70 115 89 30 11 7 76 11 . 14 . . 4 68 71 562 216 425 Explosive 66 | . . . . . . . 8 3 . . 3 3 . 4 . 10 . . . . 3 . . . 2 9 21 Electromagnetic 107 | . . . . . . . . . . . . . . . . . . . . . . . . . 61 10 36 Entropic 48 | . . . . . . . . . . . . . . . . 6 . . . . 10 5 1 12 . . 14 Robot Hit Streak 31 | . 10 15 17 10 4 . 16 31 30 13 5 11 8 6 . 9 10 . 10 . 9 16 15 8 22 23 25 Robot Miss Streak 7 | . 4 2 5 4 2 . 5 3 7 4 3 4 4 4 . 7 1 . 2 . 4 4 2 3 5 6 6 Penetration Max 2 | . . . . . . . . . . . 1 1 . . . . . . 1 . . 1 1 . . . 2 Secondary Targets 44 | . 4 . 2 3 1 . 7 3 1 . 2 1 . . . 3 1 . . . 2 1 2 . 5 3 3 Max Gunslinging Chain 1 | . 1 . 1 1 1 . 1 1 1 . 1 1 . . . 1 1 . . . 1 1 1 . 1 1 1 Shots Hit Robots 2040 | . 90 29 98 37 19 6 156 142 74 48 75 62 23 14 . 57 13 . 34 . 29 64 67 21 350 121 411 Core Hits 1135 | . 43 11 48 20 11 1 114 93 28 23 38 30 15 13 . 38 7 . 12 . 19 28 20 7 156 93 267 Critical Kills 31 | . . . . . . . . . . . 1 . 1 . . . . . . . . 1 . . 3 2 23 Critical Parts Destroyed 12 | . 3 . 1 . . . . . . . . 1 . . . . . . . . . . . . . 1 6 Critical Strikes 103 | . 3 . 1 2 3 . 7 6 5 3 5 3 2 . . 7 . . . . . 1 4 2 9 4 36 Burn 48 | . . . . 2 3 . 7 6 5 3 4 1 1 . . 5 . . . . . . 4 . 5 1 1 Meltdown 17 | . . . . . . . . . . . . . . . . . . . . . . . . . 3 . 14 Destroy 29 | . 3 . 1 . . . . . . . 1 2 1 . . . . . . . . 1 . . . 3 17 Corrupt 1 | . . . . . . . . . . . . . . . . . . . . . . . . . 1 . . Sunder 8 | . . . . . . . . . . . . . . . . 2 . . . . . . . 2 . . 4 Melee Attacks 12 | . . . . 5 . 6 . . . . . . . . . . . . . . . . . . . 1 . Kinetic 1 | . . . . . . . . . . . . . . . . . . . . . . . . . . 1 . Impact 5 | . . . . 5 . . . . . . . . . . . . . . . . . . . . . . . Slashing 6 | . . . . . . 6 . . . . . . . . . . . . . . . . . . . . . Piercing . | . . . . . . . . . . . . . . . . . . . . . . . . . . . . Sneak Attacks 7 | . . . . 1 . 6 . . . . . . . . . . . . . . . . . . . . . Combat Hostiles . | . . . . . . . . . . . . . . . . . . . . . . . . . . . . Follow-up Attacks . | . . . . . . . . . . . . . . . . . . . . . . . . . . . . Damage Inflicted 79168 | . 891 337 1821 726 401 286 4609 4114 1782 1315 2541 2315 623 900 . 3072 390 . 895 . 1366 1776 1956 947 14634 7175 24296 Guns 47540 | . 857 328 1765 605 386 . 2979 3396 1782 1315 2076 1670 623 205 . 1016 345 . 895 . 904 1760 1956 359 8360 4049 9909 Cannons 16269 | . . . . . . . 392 197 . . . . . . . 414 . . . . . . . 588 5393 647 8638 Explosions 14632 | . . . 43 . . . 1238 472 . . 453 603 . 695 . 1642 . . . . 462 . . . 828 2447 5749 Melee 377 | . . . . 91 . 286 . . . . . . . . . . . . . . . . . . . . . Ramming 350 | . 34 9 13 30 15 . . 49 . . 12 42 . . . . 45 . . . . 16 . . 53 32 . Kinetic 11969 | . 514 . 1455 . . . 331 . . . 376 496 172 73 . . 133 . 747 . 534 1505 777 . 191 41 4624 Thermal 46551 | . 343 328 310 605 386 . 3161 3593 1782 1315 1700 1253 451 132 . 1016 212 . 148 . . 113 1179 270 11623 4440 12191 Explosive 14389 | . . . . . . . 1117 472 . . 453 524 . 695 . 1642 . . . . 462 . . . 828 2447 5749 Electromagnetic 3111 | . . . 43 . . . . . . . . . . . . . . . . . . . . . 1939 215 914 Impact 91 | . . . . 91 . . . . . . . . . . . . . . . . . . . . . . . Slashing 286 | . . . . . . 286 . . . . . . . . . . . . . . . . . . . . . Piercing . | . . . . . . . . . . . . . . . . . . . . . . . . . . . . Entropic 2421 | . . . . . . . . . . . . . . . . 414 . . . . 370 142 . 677 . . 818 Highest Corruption 38 | . . . 2 2 2 . 4 4 4 13 15 9 11 11 11 . 2 2 4 4 4 . 4 4 31 38 18 Average Corruption 8 | . . . 2 2 2 . 2 4 4 6 10 8 9 11 11 . 1 2 3 4 4 . 3 3 14 30 6 Corruption Purged 69 | . . . . . . . . . . 13 . . . . . . . . . . . . . . 6 . 50 Corruption Blocked . | . . . . . . . . . . . . . . . . . . . . . . . . . . . . Effects 508 | . . . 3 17 24 . 14 31 17 7 8 12 57 30 3 . 1 6 11 4 14 . 7 9 106 107 20 Message Errors 104 | . . . 1 4 3 . 2 7 4 2 1 5 13 11 . . . 2 5 1 4 . 1 2 15 19 2 Matter Fused 115 | . . . . 5 8 . 3 9 3 . 3 2 19 10 . . . 1 1 . 3 . 1 1 21 20 5 Heat Flow Errors 49 | . . . . 1 1 . 4 4 . . 1 . 7 1 1 . . 1 . . 1 . 2 1 11 12 1 Energy Discharges 59 | . . . . 2 5 . 2 4 1 . 1 2 4 4 2 . 1 1 . 2 . . . 1 13 12 2 Parts Rejected 7 | . . . . . . . 1 2 . . . . . . . . . . . . 1 . . . . 3 . Parts Fused 6 | . . . . . . . . . 1 . . . . . . . . . . . . . 1 1 3 . . Data Loss (minor) 53 | . . . 1 2 5 . . 4 3 2 1 1 8 1 . . . . 2 1 3 . . . 10 8 1 Data Loss (major) 26 | . . . . 3 . . . . 1 2 . 2 2 . . . . . . . 1 . 1 1 4 6 3 Misfires 21 | . . . . . 2 . . . 1 . . . 1 3 . . . 1 2 . 1 . . 2 4 2 2 Alerts 12 | . . . 1 . . . 1 1 1 . . . 1 . . . . . . . . . . . 4 1 2 Misdirections 3 | . . . . . . . . . . . . . . . . . . . . . . . . . 1 2 . Weapon Failures 53 | . . . . . . . 1 . 2 1 1 . 2 . . . . . 1 . . . 1 . 20 22 2 Overload Shots 12 | . . . . . . . . . 1 . 1 3 . . 1 . . . . . . . 2 . . . 4 Effects 1 | . . . . . . . . . . . . . . . . . . . . . . . . . . . 1 Energy Bleed 1 | . . . . . . . . . . . . . . . . . . . . . . . . . . . 1 Overflow Damage 1226 | . . . . 69 . 7 112 14 . . 8 28 . . . 1 . . . . . . . . 265 142 580 Projectiles 792 | . . . . . . . 43 6 . . . . . . . . . . . . . . . . 208 81 454 Explosions 350 | . . . . . . . 69 . . . 8 28 . . . 1 . . . . . . . . 57 61 126 Melee 84 | . . . . 69 . 7 . 8 . . . . . . . . . . . . . . . . . . . Knockbacks 6 | . . . . . . . 3 . . . 1 . . . . . 1 . . . . . . . 1 . . Impact 3 | . . . . . . . . . . . 1 . . . . . 1 . . . . . . . 1 . . Kinetic 3 | . . . . . . . 3 . . . . . . . . . . . . . . . . . . . . Secondary . | . . . . . . . . . . . . . . . . . . . . . . . . . . . . Self-Inflicted Damage 942 | . . . . . . . 337 . . . 15 . . 42 . . . . . . . . . . . . 548 Shots 19 | . . . . . . . 4 . . . 1 . . 1 . . . . . . . . . . . . 13 Rammed . | . . . . . . . . . . . . . . . . . . . . . . . . . . . . Targets Rammed 41 | . 9 1 3 7 5 . . 3 . . 2 2 . . . . 3 . . . . 1 . . 3 2 . Kicked 41 | . 9 1 3 7 5 . . 3 . . 2 2 . . . . 3 . . . . 1 . . 3 2 . Crushed . | . . . . . . . . . . . . . . . . . . . . . . . . . . . . Highest Temperature 544 | . 168 194 114 322 205 . 465 367 381 362 317 336 228 168 180 419 . . . . . . 473 168 323 48 544 Average Temperature 98 | . 33 59 28 79 31 . 151 109 133 111 119 120 82 49 59 143 . . . . . . 167 98 136 30 70 Received Heat Transfer 4709 | . 279 117 432 219 40 . 748 462 . 27 66 183 54 54 9 484 18 . 12 . 56 8 139 . 625 49 628 Effects 14 | . . . . 1 . . 4 . . . . 3 . . . . . . . . . . 2 . . . 4 Shutdowns 1 | . . . . . . . . . . . . . . . . . . . . . . . . . . . 1 Energy Bleed 2 | . . . . . . . 2 . . . . . . . . . . . . . . . . . . . . Interference 8 | . . . . 1 . . 2 . . . . 3 . . . . . . . . . . 1 . . . 1 Matter Decay 1 | . . . . . . . . . . . . . . . . . . . . . . . 1 . . . . Damage (minor) 1 | . . . . . . . . . . . . . . . . . . . . . . . . . . . 1 Damage (core) 1 | . . . . . . . . . . . . . . . . . . . . . . . . . . . 1 Siege Activations . | . . . . . . . . . . . . . . . . . . . . . . . . . . . . Martial Activations . | . . . . . . . . . . . . . . . . . . . . . . . . . . . . Shielding Activations 28 | . . . . . . . . . . . . . . . . . . . . . . . 1 1 21 2 3 Total Turns 331 | . . . . . . . . . . . . . . . . . . . . . . . 2 19 259 41 10 Longest Duration 35 | . . . . . . . . . . . . . . . . . . . . . . . 2 19 35 31 5 Robots Disrupted 2 | . . . . . . . . . . . . . . . . . . . . . . . . . . . 2 Combat Hostiles 2 | . . . . . . . . . . . . . . . . . . . . . . . . . . . 2 Robots Corrupted 15 | . . . . . . . . . . . . . . . . . . . . . . . . . 10 . 5 Combat Hostiles 15 | . . . . . . . . . . . . . . . . . . . . . . . . . 10 . 5 Parts Fried 38 | . . . . 1 . . . . . . . . . . . . . . . . . . . . 24 1 12 Impact Corruptions 3 | . . . . 2 . . . 1 . . . . . . . . . . . . . . . . . . . Robots Melted 30 | . . 1 . 1 . . 2 6 . . . . . . . . . . . . . . 1 . 5 . 14 Combat Hostiles 28 | . . 1 . 1 . . 2 5 . . . . . . . . . . . . . . 1 . 5 . 13 Parts Melted 168 | . 1 1 1 6 3 . 20 32 5 10 8 7 1 . . 1 . . . . . 1 2 . 44 3 22 Heat Transferred 61800 | . 775 749 719 1591 1147 . 7049 7738 2616 2220 2702 1715 781 235 . 2102 333 . 222 . . 148 1813 277 11914 4699 10255 Parts Sabotaged 6 | . . . . . . . . . . . . . . . . . . . . . . . 3 . . . 3 Parts Stolen . | . . . . . . . . . . . . . . . . . . . . . . . . . . . . Parts Stripped 18 | . . . . . . . . . . . . . . . . . . . . . . . . . . 18 . Power Chain Reactions . | . . . . . . . . . . . . . . . . . . . . . . . . . . . . Alert | -11 -10 -10 -9 -9 -9 -9 -6 -6 -6 -6 -6 -5 -5 -5 -5 -4 -4 -4 -4 -4 -3 -3 -3 -3 -2 -2 -2 ------- Run | Yrd Mat Min Mat Sto Rec Scr Fac Ext Cet Arc Hub Fac Upp Upp War Pro Fac Upp Upp Zhi Pro Res Arm Lab Res Qua Frg Maximum Alert Level 5 | . 1 . . 1 . . 3 3 2 1 4 3 . . . . . . . . . . . . 4 5 5 Low Security (%) 41 | . 52 100 100 78 100 . 51 . . 1 19 . . . . . 100 . . . . 100 100 . 27 . . Level 1 17 | . 47 . . 21 . . 5 64 13 98 . 29 . . . . . . . . . . . . 31 . . Level 2 15 | . . . . . . . 16 27 86 . 41 65 . . . . . . . . . . . . 15 . 19 Level 3 11 | . . . . . . . 26 8 . . 37 5 . . . . . . . . . . . . 10 44 22 Level 4 8 | . . . . . . . . . . . . . . . . . . . . . . . . . 14 49 20 Level 5 5 | . . . . . . . . . . . . . . . . . . . . . . . . . . 6 37 High Security . | . . . . . . . . . . . . . . . . . . . . . . . . . . . . Max Security . | . . . . . . . . . . . . . . . . . . . . . . . . . . . . Peak Influence 3028 | . 271 60 186 263 107 . 805 737 578 382 1115 730 . . . . 65 . . . . 127 141 . 1542 1644 3028 Initial 920 | . . 55 5 70 60 . . 382 427 187 72 509 . . . . 65 . . . . . . . . 861 920 Average 497 | . 176 22 79 135 25 . 339 412 471 287 648 466 . . . . 13 . . . . 27 63 . 505 1183 1352 Influence Increases 16912 | . 517 115 605 670 388 . 1316 1189 363 265 1594 969 201 118 . 315 121 . 140 . 200 205 303 . 2569 1399 3350 Destroy 0b10 Robot/C 9180 | . 340 80 380 360 160 . 740 660 160 80 640 420 140 100 . 280 40 . 120 . 160 100 200 . 1360 700 1960 Destroy 0b10 Robot/NC 655 | . 10 10 30 30 5 . 50 55 10 30 15 40 5 . . 5 10 . . . 5 35 . . 70 30 210 Destroy Leader 1776 | . 54 20 138 106 . . 154 84 . . 140 72 10 10 . 30 10 . 20 . 20 44 20 . 380 120 344 Allied During Kill 1675 | . . . . 119 49 . . 306 170 110 665 82 46 8 . . . . . . . . 9 . . . 111 Successful Hack 375 | . 23 5 8 9 24 . 16 35 . . . 36 . . . . 44 . . . . 16 . . 90 27 42 Select Force Hacks 260 | . 60 . . . 150 . . . . . 50 . . . . . . . . . . . . . . . . Disable Machine 915 | . . . 45 30 . . 165 15 15 45 30 120 . . . . . . . . . . 60 . 135 105 150 Destroy Structure 1656 | . . . 4 1 . . 146 19 8 . 54 154 . . . . 2 . . . . 10 14 . 459 312 473 Lose Combat Pursuer 420 | . 30 . . 15 . . 45 15 . . . 45 . . . . 15 . . . 15 . . . 75 105 60 Influence Decreases 13922 | . 374 243 452 683 543 . 535 1207 658 527 760 1291 831 206 . 210 196 30 140 . 200 205 275 28 1037 1294 1997 Entered New Map 3724 | . . 88 10 98 95 . . 399 336 281 134 531 267 17 . . 40 12 . . . . . 28 . 671 717 Time Decay 7669 | . 374 135 422 437 397 . 386 538 302 246 286 410 534 169 . 200 156 18 140 . 200 205 174 . 687 553 700 Lost Part 790 | . . 20 20 10 . . 70 90 . . 40 50 10 . . 10 . . . . . . . . 50 70 350 Lost Ally 908 | . . . . 138 51 . 79 180 20 . 300 . 20 20 . . . . . . . . 20 . . . 80 Purge Threat 831 | . . . . . . . . . . . . 300 . . . . . . . . . . 81 . 300 . 150 Squads Dispatched 108 | . 2 . 2 3 . . 12 5 . . 8 7 . . . . 2 . . . . 5 2 . 24 13 23 Investigation 26 | . 2 . . . . . 2 4 . . 2 4 . . . . 1 . . . . 3 . . 4 . 4 Extermination 20 | . . . . . . . 3 . . . 1 1 . . . . 1 . . . . . 1 . 7 3 3 Reinforcement 27 | . . . 2 2 . . 3 1 . . 4 2 . . . . . . . . . 2 1 . 4 2 4 Assault 17 | . . . . . . . 1 . . . 1 . . . . . . . . . . . . . 1 5 9 Garrison 5 | . . . . 1 . . 3 . . . . . . . . . . . . . . . . . 1 . . Intercept 13 | . . . . . . . . . . . . . . . . . . . . . . . . . 7 3 3 Searches Triggered . | . . . . . . . . . . . . . . . . . . . . . . . . . . . . Construction Impeded 4 | . . . . . . . . 1 . . . 1 . . . . . . . . . . . . 1 1 . Haulers Reinforced 4 | . . . . . . . 2 . . . 1 . . . . . . . . . . 1 . . . . . Active Scanning Responses . | . . . . . . . . . . . . . . . . . . . . . . . . . . . . Cargo Convoy Interrupts . | . . . . . . . . . . . . . . . . . . . . . . . . . . . . Stealth | -11 -10 -10 -9 -9 -9 -9 -6 -6 -6 -6 -6 -5 -5 -5 -5 -4 -4 -4 -4 -4 -3 -3 -3 -3 -2 -2 -2 --------- Run | Yrd Mat Min Mat Sto Rec Scr Fac Ext Cet Arc Hub Fac Upp Upp War Pro Fac Upp Upp Zhi Pro Res Arm Lab Res Qua Frg Distress Signals 32 | . 2 1 2 1 . . 3 . 2 . . 2 . . 5 . . . . . . 5 1 . 5 1 2 Communications Jammed . | . . . . . . . . . . . . . . . . . . . . . . . . . . . . Distress Signals . | . . . . . . . . . . . . . . . . . . . . . . . . . . . . Times Spotted 617 | . 26 4 32 23 8 . 42 31 9 13 28 24 7 5 3 14 8 . 6 . 10 18 19 1 90 44 152 Peak Tracking Total 13 | . 4 2 4 6 4 . 8 6 5 1 7 5 4 5 7 5 4 . 3 . 4 5 9 1 6 6 13 Tactical Retreats 23 | . 2 . . 1 . . 2 1 . . . 2 . . . . 1 . . . 1 . . . 3 7 3 Traps | -11 -10 -10 -9 -9 -9 -9 -6 -6 -6 -6 -6 -5 -5 -5 -5 -4 -4 -4 -4 -4 -3 -3 -3 -3 -2 -2 -2 ------- Run | Yrd Mat Min Mat Sto Rec Scr Fac Ext Cet Arc Hub Fac Upp Upp War Pro Fac Upp Upp Zhi Pro Res Arm Lab Res Qua Frg Traps Triggered 26 | . . . 1 1 . . 4 4 . . . 5 1 . 1 . . . . . . . 1 . 2 3 3 Indirectly . | . . . . . . . . . . . . . . . . . . . . . . . . . . . . Trap Hack Attempts . | . . . . . . . . . . . . . . . . . . . . . . . . . . . . Triggered . | . . . . . . . . . . . . . . . . . . . . . . . . . . . . Disarmed . | . . . . . . . . . . . . . . . . . . . . . . . . . . . . Reprogrammed . | . . . . . . . . . . . . . . . . . . . . . . . . . . . . Reused . | . . . . . . . . . . . . . . . . . . . . . . . . . . . . Traps Extracted . | . . . . . . . . . . . . . . . . . . . . . . . . . . . . Installed 1 | . . . . . . . . . . . . . 1 . . . . . . . . . . . . . . Triggered . | . . . . . . . . . . . . . . . . . . . . . . . . . . . . Machines | -11 -10 -10 -9 -9 -9 -9 -6 -6 -6 -6 -6 -5 -5 -5 -5 -4 -4 -4 -4 -4 -3 -3 -3 -3 -2 -2 -2 ---------- Run | Yrd Mat Min Mat Sto Rec Scr Fac Ext Cet Arc Hub Fac Upp Upp War Pro Fac Upp Upp Zhi Pro Res Arm Lab Res Qua Frg Machines Disabled 83 | . . . 3 2 . . 11 3 3 3 2 8 . . 1 . . . . . . . 4 11 9 7 16 Max in Single Turn 5 | . . . 1 1 . . 5 1 1 2 . 5 . . 1 . . . . . . . 1 1 1 1 2 Garrison Access 5 | . . . . 1 . . . . . . . . . . . . . . . . . 1 . . 2 . 1 Network Hub 1 | . . . . . . . . . . . 1 . . . . . . . . . . . . . . . . Machines Repaired . | . . . . . . . . . . . . . . . . . . . . . . . . . . . . Machines Dismantled . | . . . . . . . . . . . . . . . . . . . . . . . . . . . . Machines Sabotaged 1 | . . . . . . . . . . . 1 . . . . . . . . . . . . . . . . Overloaded Fab Kills . | . . . . . . . . . . . . . . . . . . . . . . . . . . . . Hacking | -11 -10 -10 -9 -9 -9 -9 -6 -6 -6 -6 -6 -5 -5 -5 -5 -4 -4 -4 -4 -4 -3 -3 -3 -3 -2 -2 -2 --------- Run | Yrd Mat Min Mat Sto Rec Scr Fac Ext Cet Arc Hub Fac Upp Upp War Pro Fac Upp Upp Zhi Pro Res Arm Lab Res Qua Frg Machines Accessed 113 | . 7 1 8 8 10 1 4 11 1 . 2 9 1 . 2 . 6 2 1 4 . 5 1 3 10 6 10 Terminals 64 | . 5 1 8 6 5 . 2 10 1 . 2 4 . . . . 2 1 . . . 4 1 . 2 4 6 Fabricators 3 | . . . . . . . . . . . . 1 . . . . . . . . . 1 . . 1 . . Repair Stations 5 | . . . . . . . . 1 . . . . . . . . 2 . . . . . . . 2 . . Recycling Units 20 | . 2 . . 1 5 . 1 . . . . 4 . . . . 1 . . . . . . . 3 . 3 Scanalyzers 1 | . . . . . . . . . . . . . . . . . . . . . . . . . . 1 . Garrison Access 7 | . . . . 1 . . 1 . . . . . . . . . 1 . . . . . . . 2 1 1 Total Hacks 289 | . 13 5 14 14 19 5 9 19 1 . 5 30 1 . 2 . 21 2 1 17 . 10 2 6 36 23 34 Successful 125 | . 5 1 2 5 15 5 3 6 . . 2 11 1 . 2 . 6 2 1 17 . 3 1 6 17 2 12 Failed 164 | . 8 4 12 9 4 . 6 13 1 . 3 19 . . . . 15 . . . . 7 1 . 19 21 22 Catastrophic 46 | . . 1 6 3 . . 1 4 1 . . 4 . . . . 4 . . . . 4 1 . 6 9 2 Database Lockouts . | . . . . . . . . . . . . . . . . . . . . . . . . . . . . Manual 130 | . 9 . 11 8 17 . 2 4 1 . 5 17 . . . . 13 . . . . . . . 7 11 25 Terminals 166 | . 11 5 14 10 14 . 4 17 1 . 5 13 . . . . 10 1 . . . 5 2 . 10 16 28 Fabricators 23 | . . . . . . . . . . . . 12 . . . . . . . . . 5 . . 6 . . Repair Stations 18 | . . . . . . . . 2 . . . . . . . . 5 . . . . . . . 11 . . Recycling Units 26 | . 2 . . 2 5 . 2 . . . . 5 . . . . 3 . . . . . . . 4 . 3 Scanalyzers 1 | . . . . . . . . . . . . . . . . . . . . . . . . . . 1 . Garrison Access 22 | . . . . 2 . . 3 . . . . . . . . . 3 . . . . . . . 5 6 3 Terminal Hacks 70 | . 3 1 2 2 3 5 2 6 . . . 4 1 . 2 . 2 2 1 17 . 1 1 6 3 1 5 Record 17 | . 1 . . . . 5 . . . . . . . . . . . 1 . 5 . . . 5 . . . Part Schematic 5 | . . . . . . . . . . . . . . . . . 1 . . 4 . . . . . . . Robot Analysis 7 | . 1 . . . 2 . . . . . . . . . . . . . . 4 . . . . . . . Prototype ID Bank 4 | . . . . . . . . . . . . . . . . . . . . 4 . . . . . . . Open Door 14 | . . . . 2 . . 1 6 . . . . 1 . 2 . . 1 1 . . . . . . . . Branch Access Points 6 | . . . 1 . . . 1 . . . . 1 . . . . 1 . . . . 1 . . 1 . . Alert Level 2 | . . . 1 . 1 . . . . . . . . . . . . . . . . . . . . . . Unreport Threat 6 | . . . . . . . . . . . . 2 . . . . . . . . . . 1 . 2 . 1 Hauler Manifests 2 | . 1 . . . . . . . . . . . . . . . . . . . . . . . . 1 . Zone Layout 5 | . . 1 . . . . . . . . . 1 . . . . . . . . . . . . . . 3 Proto ID Catalog 1 | . . . . . . . . . . . . . . . . . . . . . . . . . . . 1 Release Object 1 | . . . . . . . . . . . . . . . . . . . . . . . . 1 . . . Fabricator Hacks 3 | . . . . . . . . . . . . . . . . . . . . . . 2 . . 1 . . Network Status 2 | . . . . . . . . . . . . . . . . . . . . . . 1 . . 1 . . Load Schematic 1 | . . . . . . . . . . . . . . . . . . . . . . 1 . . . . . Repair Station Hacks 7 | . . . . . . . . . . . . . . . . . 2 . . . . . . . 5 . . Scan Component 5 | . . . . . . . . . . . . . . . . . 2 . . . . . . . 3 . . Repair 2 | . . . . . . . . . . . . . . . . . . . . . . . . . 2 . . Recycling Unit Hacks 1 | . . . . 1 . . . . . . . . . . . . . . . . . . . . . . . Retrieve Components 1 | . . . . 1 . . . . . . . . . . . . . . . . . . . . . . . Scanalyzer . | . . . . . . . . . . . . . . . . . . . . . . . . . . . . Garrison Access Hacks 4 | . . . . 1 . . . . . . . . . . . . . . . . . . . . 2 . 1 Seal Access 4 | . . . . 1 . . . . . . . . . . . . . . . . . . . . 2 . 1 Unauthorized Hacks 40 | . 2 . . 1 12 . 1 . . . 2 7 . . . . 2 . . . . . . . 6 1 6 Terminals 15 | . . . . . 7 . . . . . 2 1 . . . . 1 . . . . . . . . 1 3 Track 1 | . . . . . . . . . . . . . . . . . . . . . . . . . . . 1 Botnet 7 | . . . . . 2 . . . . . . 1 . . . . 1 . . . . . . . . 1 2 Skim 5 | . . . . . 5 . . . . . . . . . . . . . . . . . . . . . . Sabotage 2 | . . . . . . . . . . . 2 . . . . . . . . . . . . . . . . Fabricators 5 | . . . . . . . . . . . . 3 . . . . . . . . . . . . 2 . . Report 1 | . . . . . . . . . . . . 1 . . . . . . . . . . . . . . . Liberate 2 | . . . . . . . . . . . . 1 . . . . . . . . . . . . 1 . . Haulers 2 | . . . . . . . . . . . . 1 . . . . . . . . . . . . 1 . . Repair Stations 1 | . . . . . . . . . . . . . . . . . . . . . . . . . 1 . . Patch 1 | . . . . . . . . . . . . . . . . . . . . . . . . . 1 . . Recycling Units 19 | . 2 . . 1 5 . 1 . . . . 3 . . . . 1 . . . . . . . 3 . 3 Reject 1 | . . . . 1 . . . . . . . . . . . . . . . . . . . . . . . Tunnel 7 | . 2 . . . 5 . . . . . . . . . . . . . . . . . . . . . . Fedlink 8 | . . . . . . . 1 . . . . 2 . . . . 1 . . . . . . . 3 . 1 Scrapoids 2 | . . . . . . . . . . . . 1 . . . . . . . . . . . . . . 1 Scraphulk 1 | . . . . . . . . . . . . . . . . . . . . . . . . . . . 1 Scanalyzers . | . . . . . . . . . . . . . . . . . . . . . . . . . . . . Garrison Access . | . . . . . . . . . . . . . . . . . . . . . . . . . . . . Data Cores Recovered 3 | . . . . . . . . . . . . 1 . . . . 1 . . . . . . . . . 1 Used . | . . . . . . . . . . . . . . . . . . . . . . . . . . . . Hacking Detections 69 | . 4 1 8 6 3 . 4 6 1 . 1 6 . . . . 5 . . . . 5 1 . 5 6 7 Full Trace Events 4 | . . . . . . . . 2 . . . 1 . . . . . . . . . 1 . . . . . Feedback Events . | . . . . . . . . . . . . . . . . . . . . . . . . . . . . Feedback Blocked . | . . . . . . . . . . . . . . . . . . . . . . . . . . . . Robot Schematics Acquired 1 | . . . . . . . . . . . . . . . . . . . . . . . . . . . 1 Robots Built . | . . . . . . . . . . . . . . . . . . . . . . . . . . . . Authchips . | . . . . . . . . . . . . . . . . . . . . . . . . . . . . Time . | . . . . . . . . . . . . . . . . . . . . . . . . . . . . Total Robot Build Rating . | . . . . . . . . . . . . . . . . . . . . . . . . . . . . Part Schematics Acquired 6 | . . . . . . . . . . . . . . . . . 1 . . 4 . . . . . . 1 Parts Built . | . . . . . . . . . . . . . . . . . . . . . . . . . . . . Authchips . | . . . . . . . . . . . . . . . . . . . . . . . . . . . . Time . | . . . . . . . . . . . . . . . . . . . . . . . . . . . . Total Part Build Rating . | . . . . . . . . . . . . . . . . . . . . . . . . . . . . Parts Repaired 2 | . . . . . . . . . . . . . . . . . . . . . . . . . 2 . . Time 148 | . . . . . . . . . . . . . . . . . . . . . . . . . 148 . . Parts Recycled . | . . . . . . . . . . . . . . . . . . . . . . . . . . . . Recycled Matter . | . . . . . . . . . . . . . . . . . . . . . . . . . . . . Retrieved Matter . | . . . . . . . . . . . . . . . . . . . . . . . . . . . . Retrieved Components 9 | . . . . 9 . . . . . . . . . . . . . . . . . . . . . . . Parts Scanalyzed . | . . . . . . . . . . . . . . . . . . . . . . . . . . . . Part Schematics Acquired . | . . . . . . . . . . . . . . . . . . . . . . . . . . . . Parts Damaged . | . . . . . . . . . . . . . . . . . . . . . . . . . . . . Bothacking | -11 -10 -10 -9 -9 -9 -9 -6 -6 -6 -6 -6 -5 -5 -5 -5 -4 -4 -4 -4 -4 -3 -3 -3 -3 -2 -2 -2 ------------ Run | Yrd Mat Min Mat Sto Rec Scr Fac Ext Cet Arc Hub Fac Upp Upp War Pro Fac Upp Upp Zhi Pro Res Arm Lab Res Qua Frg Used RIF Installer . | . . . . . . . . . . . . . . . . . . . . . . . . . . . . Robots Hacked . | . . . . . . . . . . . . . . . . . . . . . . . . . . . . Non-combat . | . . . . . . . . . . . . . . . . . . . . . . . . . . . . Combat . | . . . . . . . . . . . . . . . . . . . . . . . . . . . . Robot Hacks Applied . | . . . . . . . . . . . . . . . . . . . . . . . . . . . . Relay Couplers Released 4 | . . . . . . . . . . . . . . . . . . . . . . 1 . . . 3 . Machine Destruction 1 | . . . . . . . . . . . . . . . . . . . . . . 1 . . . . . Programmers 3 | . . . . . . . . . . . . . . . . . . . . . . . . . . 3 . Fabnet Peak Effective % . | . . . . . . . . . . . . . . . . . . . . . . . . . . . . Robots Rewired 31 | . . . . . 6 . . 22 . . . . . 1 . . . . . . . . 2 . . . . Allies Hacked 1 | . . . . . . . . . . . . . . . . . . . . . . . 1 . . . . Hacks Repelled . | . . . . . . . . . . . . . . . . . . . . . . . . . . . . Allies | -11 -10 -10 -9 -9 -9 -9 -6 -6 -6 -6 -6 -5 -5 -5 -5 -4 -4 -4 -4 -4 -3 -3 -3 -3 -2 -2 -2 -------- Run | Yrd Mat Min Mat Sto Rec Scr Fac Ext Cet Arc Hub Fac Upp Upp War Pro Fac Upp Upp Zhi Pro Res Arm Lab Res Qua Frg Total Allies 65 | . . . . 10 6 . . 29 5 . . 5 1 1 . . . . . . . . 2 . . . 6 Largest Group 20 | . . . . 10 11 10 9 15 20 18 17 5 4 1 1 . . . . . . . 2 . . . 6 Highest-Rated Group 1042 | . . . . 88 145 137 128 572 1042 856 834 238 219 82 49 . . . . . . . 128 . . . 462 Highest-Rated Ally 159 | . . . . 16 27 27 27 159 159 96 96 50 82 82 49 . . . . . . . 64 . . . 139 Total Orders 29 | . . . . 5 . 4 2 2 4 1 1 . 10 . . . . . . . . . . . . . . STAY 6 | . . . . . . 1 1 . 1 . 1 . 2 . . . . . . . . . . . . . . ROAM 4 | . . . . 2 . . . . . . . . 2 . . . . . . . . . . . . . . FOLLOW 7 | . . . . . . 1 1 . 1 . . . 4 . . . . . . . . . . . . . . GUARD 3 | . . . . . . . . 1 1 . . . 1 . . . . . . . . . . . . . . AID 4 | . . . . . . . . 1 1 1 . . 1 . . . . . . . . . . . . . . EXPLORE 4 | . . . . 3 . 1 . . . . . . . . . . . . . . . . . . . . . RETURN 1 | . . . . . . 1 . . . . . . . . . . . . . . . . . . . . . Ally Attacks 491 | . . . . 40 44 . 26 87 53 12 106 35 25 8 . . . . . . . . . . . . 55 Total Damage 12477 | . . . . 339 339 . 368 2256 1330 479 2898 1247 702 195 . . . . . . . . . . . . 2324 Kills 94 | . . . . 7 4 . . 19 8 1 26 10 6 . . . . . . . . . . . . . 13 Allies Corrupted 3 | . . . . . . . . . . . 3 . . . . . . . . . . . . . . . . Allies Melted 1 | . . . . . . . . . . . . . . 1 . . . . . . . . . . . . . Intel | -11 -10 -10 -9 -9 -9 -9 -6 -6 -6 -6 -6 -5 -5 -5 -5 -4 -4 -4 -4 -4 -3 -3 -3 -3 -2 -2 -2 ------- Run | Yrd Mat Min Mat Sto Rec Scr Fac Ext Cet Arc Hub Fac Upp Upp War Pro Fac Upp Upp Zhi Pro Res Arm Lab Res Qua Frg Active Infowar (turns) 9742 | . . . 1216 221 . . . . . . . 728 1509 829 863 . . . . . . 857 383 432 735 594 1375 Sensors 8305 | . . . . . . . . . . . . 728 1509 829 863 . . . . . . 857 383 432 735 594 1375 Structural 1437 | . . . 1216 221 . . . . . . . . . . . . . . . . . . . . . . . Robot Analysis Total 7 | . 1 . . . 2 . . . . . . . . . . . . . . 4 . . . . . . . Derelict Logs Recovered 7 | . . . . . . . . . . . . . 3 2 . . . 1 1 . . . . . . . . Drone Launches 21 | . . . . 19 . 2 . . . . . . . . . . . . . . . . . . . . . Drone Recoveries 7 | . . . . 5 . 2 . . . . . . . . . . . . . . . . . . . . . Exploration | -11 -10 -10 -9 -9 -9 -9 -6 -6 -6 -6 -6 -5 -5 -5 -5 -4 -4 -4 -4 -4 -3 -3 -3 -3 -2 -2 -2 ------------- Run | Yrd Mat Min Mat Sto Rec Scr Fac Ext Cet Arc Hub Fac Upp Upp War Pro Fac Upp Upp Zhi Pro Res Arm Lab Res Qua Frg Turns Passed 29940 | . 971 366 1457 1085 1702 2447 1548 1523 663 526 636 983 1509 829 1062 486 677 343 467 268 611 949 462 622 3139 1613 2996 Spaces Moved 17252 | 1 555 111 622 456 786 2103 861 776 304 258 362 563 908 395 585 377 596 315 369 229 476 683 231 310 1558 993 1469 Core 46 | . . . . . . 46 . . . . . . . . . . . . . . . . . . . . . Treads . | . . . . . . . . . . . . . . . . . . . . . . . . . . . . Legs 15803 | 1 555 111 622 456 786 654 861 776 304 258 362 563 908 395 585 377 596 315 369 229 476 683 231 310 1558 993 1469 Wheels 235 | . . . . . . 235 . . . . . . . . . . . . . . . . . . . . . Hover . | . . . . . . . . . . . . . . . . . . . . . . . . . . . . Flight 1168 | . . . . . . 1168 . . . . . . . . . . . . . . . . . . . . . Fastest Speed 29 | 120 120 190 120 190 190 29 110 110 110 110 110 116 120 190 97 97 97 108 108 105 108 108 112 133 118 116 105 Average Speed 128 | 120 130 190 185 190 190 91 125 110 110 110 114 130 148 190 163 97 106 108 108 107 108 112 120 133 132 125 122 Slowest Speed 330 | 120 190 190 190 190 190 330 190 180 110 110 185 190 190 190 190 97 108 108 108 108 108 187 133 133 203 190 190 Overloaded Moves . | . . . . . . . . . . . . . . . . . . . . . . . . . . . . Propulsion Burnouts . | . . . . . . . . . . . . . . . . . . . . . . . . . . . . Robots Hopped 1 | . . . . . . . . . . . . . 1 . . . . . . . . . . . . . . Potential Cave-ins 22 | . . . . . . . . . . . . 2 . . . 2 . . . . . . . . . 1 17 Cave-ins Triggered . | . . . . . . . . . . . . . . . . . . . . . . . . . . . . Teleports 2 | . . . . . . . . . . . . . . . . . . . . . . . 1 . . . 1 Exploration Rate (%) 54 | 2 70 22 55 93 97 93 20 83 68 81 22 21 68 80 65 61 15 47 59 60 54 21 13 99 38 78 46 Regions Visited 27 Branch Regions 20 Pre-discovered Areas 12 | . 2 . . . 6 . . . . . . 1 . . . . . . . 3 . . . . . . . Known Exits Taken 13 | . . . 1 . 1 . 1 . . . . 1 1 1 . . 1 . . . 1 1 1 1 1 1 . Unknown Exits Taken 14 | 1 1 1 . 1 . 1 . 1 1 1 1 . . . 1 1 . 1 1 1 . . . . . . . Scrap Searched 22 | . . . . . . 8 . . . . . . 4 5 . 1 . 2 1 . 1 . . . . . . Spaces Dug 145 | . . . . 1 . . 10 . . . 2 6 . . 1 2 . . . . 29 . 8 . 57 4 25 Terrain Destroyed 1071 | . . . . 1 . . 148 3 1 . 25 66 6 38 4 94 3 2 15 . 55 24 18 3 176 193 196 Melee 1 | . . . . 1 . . . . . . . . . . . . . . . . . . . . . . . Projectile 474 | . . . . . . . 17 . 1 . 13 22 6 . 4 11 3 2 15 . 8 22 17 3 135 36 159 AOE 593 | . . . . . . . 131 3 . . 12 44 . 38 . 83 . . . . 47 . . . 41 157 37 Terrain Rammed . | . . . . . . . . . . . . . . . . . . . . . . . . . . . . Walls Destroyed . | . . . . . . . . . . . . . . . . . . . . . . . . . . . . Machines Disabled . | . . . . . . . . . . . . . . . . . . . . . . . . . . . . Actions | -11 -10 -10 -9 -9 -9 -9 -6 -6 -6 -6 -6 -5 -5 -5 -5 -4 -4 -4 -4 -4 -3 -3 -3 -3 -2 -2 -2 --------- Run | Yrd Mat Min Mat Sto Rec Scr Fac Ext Cet Arc Hub Fac Upp Upp War Pro Fac Upp Upp Zhi Pro Res Arm Lab Res Qua Frg Total 22767 | . 685 225 815 606 960 2621 1139 1318 559 456 499 720 1056 465 689 442 627 318 412 250 549 818 360 464 2306 1241 2167 Wait 2330 | . 9 72 34 54 58 394 52 243 183 136 35 38 96 41 30 1 6 . 27 . 49 52 30 75 340 56 219 Move 17224 | . 554 110 621 455 785 2102 860 775 303 257 362 562 905 394 584 376 595 314 368 228 475 682 230 309 1557 992 1469 Hop 1 | . . . . . . . . . . . . . 1 . . . . . . . . . . . . . . Pick Up 284 | . 13 6 29 6 2 32 23 12 5 5 10 8 15 4 13 1 2 1 1 3 . 8 6 7 32 20 20 Fast Attach 304 | . 2 1 6 8 1 27 28 16 4 9 14 23 2 3 17 3 2 1 . 8 3 12 8 4 17 27 58 Attach 73 | . 1 3 3 1 1 3 9 8 . 1 5 4 2 . 1 . 1 . 1 . . 2 3 1 8 5 10 Detach 19 | . . 1 . . . 4 . 1 . . . 2 . . . . . . . . . 2 . . 1 4 4 Swap 320 | . 9 9 16 14 1 9 31 11 5 8 12 16 4 4 7 9 5 . . 1 2 7 14 6 45 18 57 Drop 471 | . 18 2 38 19 3 44 42 22 10 11 20 16 16 7 30 2 6 2 1 10 2 23 13 6 36 34 38 Fire 1375 | . 70 20 65 30 16 . 94 49 49 29 40 49 14 8 7 50 7 . 14 . 18 29 42 56 267 82 270 Melee 12 | . . . . 5 . 6 . . . . . . . . . . . . . . . . . . . 1 . Ram . | . . . . . . . . . . . . . . . . . . . . . . . . . . . . Kick 40 | . 9 1 3 7 5 . . 3 . . 1 2 . . . . 3 . . . . 1 . . 3 2 . Crush . | . . . . . . . . . . . . . . . . . . . . . . . . . . . . Escape Stasis 10 | . . . . . . . . 5 . . . . . . . . . . . . . . . . . . 5 Rewire 295 | . . . . . 88 . . 173 . . . . . 3 . . . . . . . . 14 . . . 17 Trap 1 | . . . . . . . . . . . . . 1 . . . . . . . . . . . . . . Miscellaneous 8 | . . . . 7 . . . . . . . . . 1 . . . . . . . . . . . . . Route ------- -11/Scrapyard -10/Materials (discovered 3 exits: *Mat x2 / *Min) -10/Mines -9/Materials (discovered 4 exits: [*Mat] / *Min x2 / *Sto) -9/Storage (discovered 2 exits: [*Mat] / *Rec) -9/Recycling (discovered 2 exits: [*Fac] / *Scr) -9/Scraptown (discovered 2 exits: *Fac x2) -6/Factory (discovered 4 exits: *Low x2 / *Ext x2) -6/Extension (discovered 2 exits: *Fac / *Cet) -6/Cetus (discovered 2 exits: *Fac / [*Arc]) -6/Archives (discovered 3 exits: *Fac / *Hub x2) -6/Hub_04(d) (discovered 2 exits: *Fac x2) -5/Factory (discovered 2 exits: *Upp x2) -5/Upper Caves -5/Upper Caves (discovered 2 exits: *Fac / *War) -5/Warlord -4/Proximity Caves -4/Factory (discovered 4 exits: *Res x2 / *Upp x2) -4/Upper Caves -4/Upper Caves -4/Zhirov -3/Proximity Caves -3/Research (discovered 3 exits: *Arm / Tes x2) -3/Armory -3/Lab -2/Research (discovered 3 exits: [*Acc] / *Qua x2) -2/Quarantine (discovered 2 exits: [*Sec] / *Frg) -2/Protoforge (discovered 1 exit: [Acc]) History --------- Turn | Location | Event 1 | -11/Scrapyard | Discovered new exit (range 0) 1 | -11/Scrapyard | Entered Materials 369 | -10/Materials | Discovered new exit (range 12) 550 | -10/Materials | Build established: Scavenger-Mutant 581 | -10/Materials | Discovered new exit (range 12) 703 | -10/Materials | Discovered new exit (range 15) 972 | -10/Materials | Entered Mines 973 | -10/Mines | Assembled infested the area 1102 | -10/Mines | Core integrity fell below 50% 1138 | -10/Mines | Lost 3 parts (2n1w) 1193 | -10/Mines | Found a Scrap Suit stashed away for nefarious purposes 1197 | -10/Mines | Found Scrap Suit 1241 | -10/Mines | Core integrity fell below 20% 1328 | -10/Mines | Discovered new exit (range 5) 1338 | -10/Mines | Entered Materials 1338 | -9/Materials | Evolved 2 slots: Propulsion x1, Utility x1 1987 | -9/Materials | Discovered new exit (range 8) 2074 | -9/Materials | Identified exit to Mines 2074 | -9/Materials | Identified exit to Storage 2447 | -9/Materials | Build established: Mutant 2655 | -9/Materials | Discovered new exit (range 15) 2795 | -9/Materials | Entered Storage 3071 | -9/Storage | Lost 14 allies 3093 | -9/Storage | Assisted by bots powering up and referring to "LRC-V3" 3197 | -9/Storage | Core integrity fell below 50% 3204 | -9/Storage | Garrison activated, responded to threat 3412 | -9/Storage | Build established: Commander-Mutant 3542 | -9/Storage | Discovered new exit (range 15) 3868 | -9/Storage | Used back door to open Recycling access 3868 | -9/Storage | Discovered new exit (range 4) 3880 | -9/Storage | Entered Recycling 3880 | -9/Recycling | Accompanied by 8 allies 4277 | -9/Recycling | Discovered new exit (range 16) 4821 | -9/Recycling | Identified exit to Scraptown 4880 | -9/Recycling | Learned location of 1 exit from Recycling 4929 | -9/Recycling | Learned 2 Materials zone layouts 5495 | -9/Recycling | Scanned before Scraplab entrance 5523 | -9/Recycling | Entered Scraplab 5582 | -9/Recycling | Entered Scraptown 5582 | -9/Scraptown | Accompanied by 10 allies 5582 | -9/Scraptown | System corruption cleaned by C-Scrubber 5943 | -9/Scraptown | Discovered new exit (range 43) 6502 | -9/Scraptown | Visited Bundlers 6533 | -9/Scraptown | Visited UFD Registry 6533 | -9/Scraptown | Registered with UFD as "Technoback" 6580 | -9/Scraptown | Visited Curators Association 6616 | -9/Scraptown | Visited A0-MCA Data Center 6651 | -9/Scraptown | Visited Abandonware Association 6670 | -9/Scraptown | Learned abandonware demo "SHUTEYE.EXE" 6670 | -9/Scraptown | Learned abandonware demo "TRNCOAT.EXE" 6899 | -9/Scraptown | Visited Research Penetration Think Tank 6939 | -9/Scraptown | Visited Scrap Suit Storage 6956 | -9/Scraptown | Visited Chapter 10 6991 | -9/Scraptown | Visited DA-N13 Charitable Foundation 7008 | -9/Scraptown | Found DCF Scrap (30 items) 7050 | -9/Scraptown | Visited Derelict Rescue Squad 7084 | -9/Scraptown | Visited Botcube Research 7092 | -9/Scraptown | Found Botcube 7179 | -9/Scraptown | Released all parts (9) 7274 | -9/Scraptown | Visited IN-MT5's Study 7522 | -9/Scraptown | Build established: Commander-Sprinter 7570 | -9/Scraptown | Given an S rating by A0-MCA 7571 | -9/Scraptown | Found Prototype Processor 7573 | -9/Scraptown | Found A0-MCA's Component Scanner 7603 | -9/Scraptown | Found DRS Beacon 7928 | -9/Scraptown | Met Optimus 7928 | -9/Scraptown | Accepted into 0bPrime 7947 | -9/Scraptown | Build established: Commander-Mutant 8012 | -9/Scraptown | Discovered new exit (range 3) 8029 | -9/Scraptown | Entered Factory 8029 | -6/Factory | Accompanied by 9 allies 8029 | -6/Factory | Evolved 6 slots: Propulsion x1, Utility x3, Weapon x2 8669 | -6/Factory | Garrison activated, responded to threat 8984 | -6/Factory | Destroyed 16 combat bots 8986 | -6/Factory | Lost 5 parts (1n1u3w) 9079 | -6/Factory | First assault squad dispatched 9212 | -6/Factory | Identified exit to Lower Caves 9212 | -6/Factory | Identified exit to Extension 9290 | -6/Factory | Loaded intel: 8 recycling unit locations 9577 | -6/Factory | Entered Extension 9598 | -6/Extension | Build established: Tank 9943 | -6/Extension | Rescued a captive Derelict 9953 | -6/Extension | Build established: Scavenger-Tank 10012 | -6/Extension | Rescued a captive Derelict 10164 | -6/Extension | Rescued a captive Derelict 10390 | -6/Extension | Build established: Commander-Gunner 10437 | -6/Extension | Spotted B-75 Beast 10469 | -6/Extension | Destroyed B-75 Beast 10475 | -6/Extension | Spotted B-75 Beast 10514 | -6/Extension | Destroyed B-75 Beast 10523 | -6/Extension | Lost 8 allies 10552 | -6/Extension | Lost 6 parts (1p3u2w) 10768 | -6/Extension | Rescued a captive Derelict 10794 | -6/Extension | Rescued a captive Derelict 10796 | -6/Extension | Rescued a captive Derelict 10818 | -6/Extension | Rescued A7 10827 | -6/Extension | Disrupted transfer network 11041 | -6/Extension | Discovered new exit (range 10) 11042 | -6/Extension | Discovered new exit (range 6) 11100 | -6/Extension | Entered Cetus 11100 | -6/Cetus | Accompanied by 15 allies (A7) 11105 | -6/Cetus | Acquired a Cetus Manufacturing Module code from A7 11126 | -6/Cetus | Spotted Cetus Guard 11129 | -6/Cetus | Spotted Cetus Guard 11129 | -6/Cetus | Spotted Cetus Guard 11131 | -6/Cetus | Spotted Cetus Guard 11132 | -6/Cetus | Allies destroyed Cetus Guard 11134 | -6/Cetus | Allies destroyed Cetus Guard 11137 | -6/Cetus | Destroyed Cetus Guard 11140 | -6/Cetus | Destroyed Cetus Guard 11188 | -6/Cetus | Started Cetus Manufacturing Module 11213 | -6/Cetus | Manufactured an Enhanced Grunt 11238 | -6/Cetus | Manufactured an Enhanced Grunt 11263 | -6/Cetus | Manufactured an Enhanced Grunt 11288 | -6/Cetus | Manufactured an Enhanced Grunt 11313 | -6/Cetus | Manufactured an Enhanced Grunt 11406 | -6/Cetus | Escorted A7 to Cetus Mainframe 11518 | -6/Cetus | Build established: Commander-Tank 11548 | -6/Cetus | Murdered A7 11552 | -6/Cetus | Extracted ID and sensor layout for unrecognized location from A7's data core 11590 | -6/Cetus | Discovered new exit (range 15) 11618 | -6/Cetus | Spotted Cetus Guard 11618 | -6/Cetus | Spotted Cetus Guard 11628 | -6/Cetus | Spotted Cetus Guard 11630 | -6/Cetus | Allies destroyed Cetus Guard 11630 | -6/Cetus | Spotted Cetus Guard 11636 | -6/Cetus | Allies destroyed Cetus Guard 11637 | -6/Cetus | Allies destroyed Cetus Guard 11649 | -6/Cetus | Allies destroyed Cetus Guard 11653 | -6/Cetus | Discovered new exit (range 16) 11660 | -6/Cetus | Met Revision 17 11763 | -6/Cetus | Entered Archives 11763 | -6/Archives | Accompanied by 18 allies 11788 | -6/Archives | Core integrity fell below 50% 11800 | -6/Archives | Discovered new exit (range 16) 11821 | -6/Archives | Discovered new exit (range 16) 11841 | -6/Archives | Discovered new exit (range 14) 11868 | -6/Archives | System corruption reached 10% 12289 | -6/Archives | Entered Hub_04(d) 12289 | -6/Hub_04(d) | Accompanied by 17 allies 12425 | -6/Hub_04(d) | Discovered new exit (range 16) 12454 | -6/Hub_04(d) | Lost 7 allies 12513 | -6/Hub_04(d) | Discovered new exit (range 16) 12639 | -6/Hub_04(d) | First assault squad dispatched 12743 | -6/Hub_04(d) | Lost 3 allies 12749 | -6/Hub_04(d) | Network Hub disabled 12760 | -6/Hub_04(d) | Spotted Lightning 12764 | -6/Hub_04(d) | Spotted Lightning 12764 | -6/Hub_04(d) | Spotted Lightning 12780 | -6/Hub_04(d) | Build established: Scavenger-Tank 12811 | -6/Hub_04(d) | Lost 6 allies 12811 | -6/Hub_04(d) | Destroyed Lightning 12820 | -6/Hub_04(d) | Core integrity fell below 20% 12834 | -6/Hub_04(d) | Destroyed Lightning 12839 | -6/Hub_04(d) | Lost 4 parts (1n1u2w) 12841 | -6/Hub_04(d) | Destroyed Lightning 12858 | -6/Hub_04(d) | Found Prototype Device 12880 | -6/Hub_04(d) | Found Prototype Device 12880 | -6/Hub_04(d) | Identified Exp. Thermal Shield 12920 | -6/Hub_04(d) | Identified Exp. Phase Shifter 12925 | -6/Hub_04(d) | Entered Factory 12925 | -5/Factory | Evolved 2 slots: Power x1, Utility x1 13379 | -5/Factory | Build established: Scavenger-Skirmisher 13521 | -5/Factory | Loaded intel: 8 recycling unit locations 13521 | -5/Factory | Learned location of Protoforge (-2) 13673 | -5/Factory | Lost 4 parts (1p1n1u1w) 13796 | -5/Factory | Identified exit to Upper Caves 13808 | -5/Factory | Scrapoids reinforcements arrived? 13908 | -5/Factory | Entered Upper Caves 13908 | -5/Upper Caves | Accompanied by 4 allies 14081 | -5/Upper Caves | Found Unknown Device 14313 | -5/Upper Caves | Botcube activated 14333 | -5/Upper Caves | Botcube completed mutation into wheeled form, armed with 2 guns. 14629 | -5/Upper Caves | Learned Factory trap positions 14721 | -5/Upper Caves | Attracted the attention of an 0b10 checkpoint 14785 | -5/Upper Caves | System corruption reached 10% 15290 | -5/Upper Caves | Identified exit to Upper Caves 15417 | -5/Upper Caves | Entered another Upper Caves area 15417 | -5/Upper Caves | Accompanied by 1 ally 15426 | -5/Upper Caves | Discovered new exit (range 9) 15444 | -5/Upper Caves | Found Botcube 15451 | -5/Upper Caves | Activated DRS Beacon 15895 | -5/Upper Caves | Discovered new exit (range 15) 15922 | -5/Upper Caves | Learned Factory terminal intel 15962 | -5/Upper Caves | Learned location of 1 exit from Factory 16072 | -5/Upper Caves | Identified exit to Warlord 16246 | -5/Upper Caves | Entered Warlord 16246 | -5/Warlord | Accompanied by 1 ally 16309 | -5/Warlord | System corruption cleaned by Quarantine Array 16764 | -5/Warlord | Visited the Vortex Lab 16765 | -5/Warlord | Warlord's base attacked by MAIN.C 16775 | -5/Warlord | Found Prototype Energy Gun 16775 | -5/Warlord | Identified Vortex Rifle 16784 | -5/Warlord | Found Prototype Energy Cannon 16784 | -5/Warlord | Identified Vortex Driver 16801 | -5/Warlord | Found Vortex Rifle 16812 | -5/Warlord | Found Vortex Driver 17010 | -5/Warlord | Found Prototype Special Weapon 17010 | -5/Warlord | Identified RU-N14's Throwing Claymores v3 17030 | -5/Warlord | Found RU-N14's Throwing Claymores v3 17095 | -5/Warlord | Found Prototype Reactor 17095 | -5/Warlord | Identified Vortex Chain Reactor 17108 | -5/Warlord | Found Prototype Processor 17108 | -5/Warlord | Identified Exp. Targeting Computer 17115 | -5/Warlord | Warlord forces counterattacked 17116 | -5/Warlord | Found Prototype Device 17116 | -5/Warlord | Identified Thermal Barrier 17121 | -5/Warlord | Identified Expert System 17124 | -5/Warlord | Found Exp. Core Analyzer 17269 | -5/Warlord | Opened side exit 17296 | -5/Warlord | Discovered new exit (range 9) 17308 | -5/Warlord | Entered Proximity Caves 17328 | -4/Proximity Caves | Lost 8 allies 17370 | -4/Proximity Caves | Build established: Scavenger-Gunner 17522 | -4/Proximity Caves | Found Imp. Powered Armor 17714 | -4/Proximity Caves | Spotted B-86 Titan 17756 | -4/Proximity Caves | Destroyed B-86 Titan 17789 | -4/Proximity Caves | Discovered new exit (range 6) 17794 | -4/Proximity Caves | Entered Factory 17794 | -4/Factory | Evolved 2 slots: Propulsion x1, Utility x1 17795 | -4/Factory | Identified exit to Research 17796 | -4/Factory | Loaded intel: 95 trap records 17797 | -4/Factory | Loaded intel: 26 terminal locations 18126 | -4/Factory | Identified exit to Upper Caves 18223 | -4/Factory | Loaded intel: 8 recycling unit locations 18301 | -4/Factory | Discovered exit to Research (range 9) 18471 | -4/Factory | Entered Upper Caves 18668 | -4/Upper Caves | Build established: Tank 18791 | -4/Upper Caves | Discovered new exit (range 13) 18814 | -4/Upper Caves | Entered another Upper Caves area 18985 | -4/Upper Caves | Attracted the attention of an 0b10 checkpoint 19165 | -4/Upper Caves | Learned Research trap positions 19270 | -4/Upper Caves | Discovered new exit (range 10) 19281 | -4/Upper Caves | Entered Zhirov 19284 | -4/Zhirov | Discovered new exit (range 5) 19306 | -4/Zhirov | Met Zhirov 19325 | -4/Zhirov | Learned location of Testing (-3) 19325 | -4/Zhirov | Learned location of Command (-1) 19336 | -4/Zhirov | Zhirov requested help retrieving the SGEMP Prototype 19359 | -4/Zhirov | Found Alien Artifact 19359 | -4/Zhirov | Identified Integrated Reactor 19359 | -4/Zhirov | Installed Integrated Reactor, increased core energy generation (+10) 19458 | -4/Zhirov | Found Alien Artifact 19549 | -4/Zhirov | Entered Proximity Caves 19838 | -3/Proximity Caves | Spotted B-86 Titan 20145 | -3/Proximity Caves | Discovered exit to Research (range 9) 20160 | -3/Proximity Caves | Entered Research 20160 | -3/Research | Evolved 2 slots: Utility x2 20161 | -3/Research | Identified exit to Armory 20161 | -3/Research | Identified exit to Testing 20162 | -3/Research | Loaded intel: 75 trap records 20360 | -3/Research | Revision forces began assault on 0b10 20397 | -3/Research | Met up with Revision 17++ 20666 | -3/Research | Build established: Scavenger-Tank 20860 | -3/Research | Research terminal network offline 21054 | -3/Research | Spotted Striker 21099 | -3/Research | Found Fusion Bomb Launcher 21109 | -3/Research | Entered Armory 21135 | -3/Armory | Lost 8 allies 21447 | -3/Armory | Build established: Gunner 21543 | -3/Armory | Expert System configures itself against Programmer targets 21563 | -3/Armory | Identified Transdimensional Reconstructor 21563 | -3/Armory | Warped through subspace to slip node 21563 | -3/Armory | Discovered new exit (range 1) 21563 | -3/Armory | Identified exit to Lab 21571 | -3/Armory | Entered Lab 21571 | -3/Lab | Discovered new exit (range 9) 21581 | -3/Lab | Identified exit to Research 21586 | -3/Lab | Hidden lab's door opened automatically 21586 | -3/Lab | Sensor layout match revealed 21587 | -3/Lab | Gained access to the hidden lab's interior 21587 | -3/Lab | Unable to decrypt terminal 21594 | -3/Lab | Unable to decrypt terminal 21710 | -3/Lab | Unable to decrypt terminal 21809 | -3/Lab | Found Quantum Router 21815 | -3/Lab | Found Med. Regenerative Plating 21844 | -3/Lab | Found Alien Artifact 21915 | -3/Lab | Found Alien Artifact 21915 | -3/Lab | Identified Core Reset Matrix 21915 | -3/Lab | Identified Core Expander 21915 | -3/Lab | Used Core Reset Matrix 21919 | -3/Lab | Sensed 2 artifacts in vicinity 21922 | -3/Lab | Installed Core Expander, added new Weapon slot 21946 | -3/Lab | Found Integrated Dissipator 21946 | -3/Lab | Installed Integrated Dissipator, increased core heat dissipation (+20) 21951 | -3/Lab | Found Transdimensional Reconstructor 22000 | -3/Lab | Detected by scanners 22026 | -3/Lab | Confronted by A5 22044 | -3/Lab | Destroyed A5 22055 | -3/Lab | Found Warp Cannon 22066 | -3/Lab | Found Med. Regenerative Plating 22127 | -3/Lab | Unable to decrypt terminal 22179 | -3/Lab | Discovered exit to Research (range 9) 22193 | -3/Lab | Entered Research 22193 | -2/Research | Evolved 2 slots: Utility x2 22319 | -2/Research | Build established: Alien-Gunner 23056 | -2/Research | Loaded intel: 5 recycling unit locations 23335 | -2/Research | Repaired Hvy. Shield Leg? 23349 | -2/Research | Build established: Hacker-Gunner 23429 | -2/Research | Repaired Hvy. Shield Leg? 23485 | -2/Research | Intercept squad dispatched 23518 | -2/Research | Spotted Tracker 23519 | -2/Research | Spotted Tracker 23521 | -2/Research | Destroyed Tracker 23524 | -2/Research | Destroyed Tracker 23586 | -2/Research | Spotted Combat Programmer 23586 | -2/Research | Spotted Combat Programmer 23589 | -2/Research | Destroyed Combat Programmer 23600 | -2/Research | System corruption reached 10% 23603 | -2/Research | Destroyed Combat Programmer 23804 | -2/Research | Discovered new exit (range 10) 24268 | -2/Research | Identified exit to Quarantine 24332 | -2/Research | Spotted B-90 Cyclops 24443 | -2/Research | First assault squad dispatched 24588 | -2/Research | Intercept squad dispatched 24609 | -2/Research | Spotted Tracker 24609 | -2/Research | Spotted Tracker 24610 | -2/Research | Spotted Tracker 24619 | -2/Research | Destroyed Tracker 24625 | -2/Research | Destroyed Tracker 24633 | -2/Research | Spotted Combat Programmer 24634 | -2/Research | Destroyed Tracker 24636 | -2/Research | Spotted Combat Programmer 24647 | -2/Research | Destroyed Combat Programmer 24657 | -2/Research | Destroyed Combat Programmer 24682 | -2/Research | Spotted Combat Programmer 24683 | -2/Research | Lost 3 parts (1n2u) 24690 | -2/Research | Destroyed Combat Programmer 24700 | -2/Research | Found Exp. Phase Shifter 24828 | -2/Research | System corruption reached 30% 25199 | -2/Research | Garrison activated, responded to threat 25312 | -2/Research | Spotted B-90 Cyclops 25332 | -2/Research | Entered Quarantine 25333 | -2/Quarantine | Detected hypermatrix surge 25333 | -2/Quarantine | Sensed 7 artifacts in vicinity 25455 | -2/Quarantine | Found Core Reset Matrix 25479 | -2/Quarantine | Found Matter Drive 25575 | -2/Quarantine | Found Core Stripper 25614 | -2/Quarantine | Build established: Scavenger-Gunner 26010 | -2/Quarantine | Found Subatomic Replicator 26082 | -2/Quarantine | First assault squad dispatched 26105 | -2/Quarantine | Found Terrabomb 26241 | -2/Quarantine | Intercept squad dispatched 26245 | -2/Quarantine | Spotted Tracker 26245 | -2/Quarantine | Spotted Tracker 26263 | -2/Quarantine | Spotted Combat Programmer 26265 | -2/Quarantine | Spotted Combat Programmer 26271 | -2/Quarantine | Destroyed Tracker 26277 | -2/Quarantine | Destroyed Combat Programmer 26309 | -2/Quarantine | Lost 3 parts (2u1w) 26338 | -2/Quarantine | Destroyed Combat Programmer 26610 | -2/Quarantine | Lost 3 parts (1p2u) 26755 | -2/Quarantine | Spotted Fortress 26760 | -2/Quarantine | Destroyed Fortress 26771 | -2/Quarantine | Found Exp. Force Field 26775 | -2/Quarantine | Found Vortex Chain Reactor 26778 | -2/Quarantine | Found Vortex Chain Reactor 26782 | -2/Quarantine | Found Exp. EM Shield 26787 | -2/Quarantine | Found Centrium Heavy Armor Plating 26936 | -2/Quarantine | Discovered new exit (range 5) 26936 | -2/Quarantine | Discovered new exit (range 6) 26943 | -2/Quarantine | Identified exit to Protoforge 26945 | -2/Quarantine | Entered Protoforge 26946 | -2/Protoforge | Sensed 2 artifacts in vicinity 26948 | -2/Protoforge | Sensed 2 artifacts in vicinity 27066 | -2/Protoforge | Superfortress began startup sequence 27162 | -2/Protoforge | Discovered new exit (range 18) 27429 | -2/Protoforge | Additional patrols dispatched to research labs 27457 | -2/Protoforge | Found Cep. Network Penetrator 27460 | -2/Protoforge | Found Cep. Network Penetrator 27465 | -2/Protoforge | Spotted Immortal 27483 | -2/Protoforge | Scanned by Researcher 27511 | -2/Protoforge | Destroyed Immortal 27539 | -2/Protoforge | Spotted Decapitator 27539 | -2/Protoforge | Spotted Decapitator 27539 | -2/Protoforge | Spotted Decapitator 27539 | -2/Protoforge | Spotted Decapitator 27632 | -2/Protoforge | Found Crosscalibrator 27639 | -2/Protoforge | Found Exp. System Purifier 27695 | -2/Protoforge | First assault squad dispatched 27885 | -2/Protoforge | Destroyed 11 combat bots 27888 | -2/Protoforge | Build established: Hacker-Gunner 27973 | -2/Protoforge | Destroyed Decapitator 27973 | -2/Protoforge | Destroyed Decapitator 27980 | -2/Protoforge | Spotted Hotshot 27986 | -2/Protoforge | Destroyed Decapitator 27988 | -2/Protoforge | Spotted Hotshot 27991 | -2/Protoforge | Destroyed Decapitator 28048 | -2/Protoforge | Destroyed Hotshot 28051 | -2/Protoforge | Lost 5 parts (2u3w) 28085 | -2/Protoforge | Destroyed Hotshot 28104 | -2/Protoforge | Intercept squad dispatched 28127 | -2/Protoforge | Spotted Tracker 28128 | -2/Protoforge | Spotted Tracker 28134 | -2/Protoforge | Destroyed Tracker 28138 | -2/Protoforge | Destroyed Tracker 28159 | -2/Protoforge | Destroyed 7 combat bots 28163 | -2/Protoforge | Found Exp. Targeting Computer 28176 | -2/Protoforge | Spotted Combat Programmer 28185 | -2/Protoforge | Found Exp. Phase Shifter 28189 | -2/Protoforge | Destroyed Combat Programmer 28208 | -2/Protoforge | Spotted Combat Programmer 28209 | -2/Protoforge | Destroyed Combat Programmer 28271 | -2/Protoforge | Destroyed 10 combat bots 28378 | -2/Protoforge | Found Cep. Variable Chargecaster 28380 | -2/Protoforge | Found Cep. Variable Chargecaster 28396 | -2/Protoforge | Found Faulty Cep. Variable Chargecaster 28439 | -2/Protoforge | Build established: Scavenger-Gunner 28484 | -2/Protoforge | Found Corrupted Cep. Zero-point Core 28521 | -2/Protoforge | Forge Plexus network access discovered 28538 | -2/Protoforge | Found Corrupted Cep. Variable Chargecaster 28565 | -2/Protoforge | Found Cep. Variable Chargecaster 28570 | -2/Protoforge | Found Cep. Plasma Driver 28982 | -2/Protoforge | Spotted SKR-2 28983 | -2/Protoforge | Spotted SKR-2 28983 | -2/Protoforge | Spotted SKR-2 28990 | -2/Protoforge | Warped through subspace 29017 | -2/Protoforge | Core integrity fell below 50% 29025 | -2/Protoforge | Destroyed EXE-6 29032 | -2/Protoforge | Spotted EXE-6 29044 | -2/Protoforge | Destroyed EXE-6 29064 | -2/Protoforge | Lost 11 parts (1p3n3u4w) 29093 | -2/Protoforge | Found Cep. XC Strikerail 29096 | -2/Protoforge | Found Cep. XC Strikerail 29101 | -2/Protoforge | Found Exp. Armor Integrity Analyzer 29150 | -2/Protoforge | UFD initiated attack on Protoforge 29150 | -2/Protoforge | Loaded intel: 3 recycling unit locations 29186 | -2/Protoforge | Optimus greeted in Protoforge 29212 | -2/Protoforge | Scrapoid reinforcements arrived 29223 | -2/Protoforge | Scraphulk reinforcements arrived? 29254 | -2/Protoforge | P-80 Master assimilated allied 02F25-D 29297 | -2/Protoforge | Met 7R-MNS 29322 | -2/Protoforge | Lost 11 allies 29392 | -2/Protoforge | Spotted AP7-3 29392 | -2/Protoforge | Spotted AP7-3 29396 | -2/Protoforge | Destroyed AP7-3 29396 | -2/Protoforge | Spotted Striker 29400 | -2/Protoforge | Destroyed AP7-3 29407 | -2/Protoforge | Spotted Executioner 29411 | -2/Protoforge | Spotted Striker 29412 | -2/Protoforge | Spotted Striker 29413 | -2/Protoforge | Destroyed Striker 29417 | -2/Protoforge | Allies destroyed Striker 29432 | -2/Protoforge | Spotted Executioner 29432 | -2/Protoforge | Spotted Executioner 29437 | -2/Protoforge | Allies destroyed Executioner 29441 | -2/Protoforge | Destroyed Executioner 29457 | -2/Protoforge | Lost 11 allies 29508 | -2/Protoforge | Spotted Hotshot 29510 | -2/Protoforge | Spotted Executioner 29512 | -2/Protoforge | Destroyed Executioner 29516 | -2/Protoforge | Destroyed Hotshot 29520 | -2/Protoforge | Spotted Executioner 29531 | -2/Protoforge | Spotted Striker 29532 | -2/Protoforge | Core integrity fell below 20% 29537 | -2/Protoforge | Destroyed 18 combat bots 29537 | -2/Protoforge | Spotted Striker 29538 | -2/Protoforge | Spotted Executioner 29538 | -2/Protoforge | Spotted Striker 29544 | -2/Protoforge | Destroyed Striker 29548 | -2/Protoforge | Destroyed Striker 29551 | -2/Protoforge | Spotted Striker 29556 | -2/Protoforge | Spotted Striker 29556 | -2/Protoforge | Spotted Striker 29557 | -2/Protoforge | Spotted Striker 29558 | -2/Protoforge | Destroyed Striker 29566 | -2/Protoforge | Destroyed Striker 29570 | -2/Protoforge | Destroyed Striker 29573 | -2/Protoforge | Destroyed Striker 29577 | -2/Protoforge | Destroyed Striker 29584 | -2/Protoforge | P-80 Master assimilated allied I8-7SW(E) 29618 | -2/Protoforge | Lost 6 parts (1n2u3w) 29623 | -2/Protoforge | Destroyed 15 combat bots 29623 | -2/Protoforge | Lost 3 allies 29679 | -2/Protoforge | Spotted Executioner 29685 | -2/Protoforge | Spotted Striker 29687 | -2/Protoforge | Destroyed Executioner 29721 | -2/Protoforge | Lost 5 allies 29906 | -2/Protoforge | Spotted Executioner 29907 | -2/Protoforge | Spotted Executioner 29910 | -2/Protoforge | Spotted Executioner 29913 | -2/Protoforge | Spotted Striker 29917 | -2/Protoforge | Spotted Hotshot 29919 | -2/Protoforge | Spotted Hotshot 29936 | -2/Protoforge | Destroyed 8 combat bots 29941 | -2/Protoforge | Destroyed by Striker with Plasma Lance Last Messages --------------- 29925_ Acquired Cep. XC Strikerail. 29928_ Acquired Cep. Variable Chargecaster. 29929_ Slug penetrates Earth. 29931_ Knocked back. 29934_ Slug penetrates Striker. 29934_ Plasma Slug penetrates Striker. 29934_ Slug penetrates Striker. 29935_ 0bP_NET: Lugger 780 inbound, all units not involved in other operations escort to target. 29935_ Imp. Remote Force Field destroyed. 29938_ Critical hit (Impale). 29939_ Slug penetrates Striker. 29939_ Striker suffers critical hit (Destroy). 29939_ Destroyed Lgt. Quantum Reactor. 29939_ Plasma Slug penetrates Striker. 29939_ Destroyed Adv. Heat Sink. 29941_ Biometal Leg destroyed. 29941_ Critical hit (Impale). 29941_ Cep. XC Strikerail destroyed. Map ----- +----------------------------------------------------+ | ?????????????????????????????????#" ! " ""# | | ?????????????????????????????????#" |" """"# | | ????????????????????????????????##" """"# | | ????????????????????????????????#" # ""# | | #############??????????????????##"" ! # "# | | #############??????????######### #"""""# "# | | ##??????????########"######## "# | | """" """" ##??????????## ##?????? " " "# | | """" """" ############## ##?????"""""""""""# | | """" """" ############## #?????############# | | """" """" + ^ + #?????????????????? | | # ^ # #?????????????????? | | ####+####### # #####?????????????????? | | ## ^ ##?????????????????? | | ## ############## ## # ### ##????????????????? | | ## ###########################????????????????? | | ## #### #?????## #????????????????? | | ## #### ######## #????????????????? | | ## ############ ##????????????????? | | "" ### # #????????????????? | | T + + ##????????????????? | | ### """"# """"""" ##????????????????? | | ## ### """"# """"""" ##????????????????? | | #### ##### """"# """"""" ##????????????????? | | ???# ##### """"# #####?????????????? | | ???# ##?## # @ # # #?????????????? | | ???# ##?## # KgE # ###????????????? | | ???# ##### # sg% ; #????????????? | | ???# #########+############%=;;; ####????????????? | | ???# ; ##??????????????? | | ???? ; ## ##?????????????? | | ???# ] %%# ## ##????????##### | | ???# !%! ; # ## ############## | | ???####/### #########"!!!%;;;############### == | | ???## # """""""""!!%!= !* ^ ]!% *% | | ???## # # """ "!* !%];;#####%^^ ]#! | | ???## # # " # ?## ^ ###+# | | ##### # # " # ## T + | | ##### # # # # """ ## " # """ | | ???## # # # """ ## # """ | | ???## # ! # # """ + # """ | | ???## # =%"""# # ########## """ | | ???######## ! !="""# # ########## | | ???##### #=%! """# # """" ####????###### | | ??????## # """# # """" ##########" " | | ??????## < + """# # """" # #########?## | | ######## # """# + """" # ?????????# | | ########### # """# # # ""?????????# | | ##?? # # # # # ""?????????# | | ##??"" # ########## ######## ""?????????# | +----------------------------------------------------+ Best States ------------- Heat Dissipation 190 Energy Generation 65 Energy Capacity 1200 Matter Stores 300 Matter Capacity 300 Sight Range 16 Robot Scan Range 18 Terrain Scan Density 210 Additional Mass Support 6 Base Temperature (-) 200 Armor Coverage 675 Resistance: TH 50 Resistance: EM 75 Weapon Cycling 20 Phase Shifting 20 Evasion (%) 84 Targeting Accuracy 12 Core Analysis 8 Particle Charging 30 Salvage Targeting 4 Offensive Hacking 50 Defensive Hacking 25 Item Schematics ----------------- Gravity Neutralizer | -2/Protoforge | Archive Robot Schematics ------------------ K-01 Serf | -2/Protoforge | Archive Fabricated ------------ Nothing Repaired ---------- Hvy. Shield Leg | 29% | -2/Research Hvy. Shield Leg | 38% | -2/Research Alien Tech Used ----------------- Integrated Reactor Transdimensional Reconstructor Core Reset Matrix Core Expander Integrated Dissipator Core Stripper Achievements -------------- None Challenges ------------ None Game ------ Seed TerrabombHoverDerivative Manual? 0 Play Time 05:26:40 Cumulative 239.3 hours Start 2025.05.18 @ 20:37:32 End 2025.05.20 @ 21:36:37 Sessions 7 Manual Loads 0 Difficulty Rogue Special Mode None Game No. 83 Rogue 83 Adventurer 0 Explorer 0 Win Type - Total 4 Types 1/0/2/0/0/0/0/0/0/1 Lore% 72 Gallery% 78 Achievement% 70 Wizard Run 0 Options --------- Layout 1 ASCII 0 Keyboard 0 Movement Arrows Keybinds 0 Fullscreen 2 Font 24/Smallcaps Map View 50x35 Zoom Use 0% Tactical HUD 1 Map Filters NONE Filters NONE Steam 1 RUN: 3698c48b-2a85-46c4-a4bf-e5d356a7cc39